Workbook

Sheet Feuil1 (hidden)
C1: FC1 40 | D1: FC1 44 | E1: FC1 48 | F1: FC1 53 | G1: FC1 58 | H1: FC1 63 | I1: FC1 69 | J1: FC1 +69 | K1: FC2 44 | L1: FC2 48 | M1: FC2 53 | N1: FC2 58 | O1: FC2 63 | P1: FC2 69 | Q1: FC2 +69 | R1: FJ48 | S1: FJ53 | T1: FJ58 | U1: FJ63 | V1: FJ69 | W1: FJ75 | X1: FJ+75 | Y1: FS48 | Z1: FS53 | AA1: FS58 | AB1: FS63 | AC1: FS69 | AD1: FS75 | AE1: FS+75 | AF1: C1 45 | AG1: C1 50 | AH1: C1 56 | AI1: C1 62 | AJ1: C1 69 | AK1: C1 77 | AL1: C1 85 | AM1: C1 94 | AN1: C1 +94 | AO1: C2 50 | AP1: C2 56 | AQ1: C2 62 | AR1: C2 69 | AS1: C2 77 | AT1: C2 85 | AU1: C2 94 | AV1: C2 +94 | AW1: J56 | AX1: J62 | AY1: J69 | AZ1: J77 | BA1: J85 | BB1: J94 | BC1: J105 | BD1: J+105 | BE1: S56 | BF1: S62 | BG1: S69 | BH1: S77 | BI1: S85 | BJ1: S94 | BK1: S105 | BL1: S+105
B2: DEBUTANT | C2: 20 | D2: 25 | E2: 25 | F2: 35 | G2: 40 | H2: 45 | I2: 50 | J2: 60 | K2: 30 | L2: 35 | M2: 45 | N2: 50 | O2: 55 | P2: 60 | Q2: 70 | R2: 45 | S2: 55 | T2: 60 | U2: 65 | V2: 70 | W2: 80 | X2: 90 | Y2: 55 | Z2: 65 | AA2: 70 | AB2: 75 | AC2: 80 | AD2: 95 | AE2: 100 | AF2: 35 | AG2: 40 | AH2: 50 | AI2: 75 | AJ2: 85 | AK2: 90 | AL2: 100 | AM2: 110 | AN2: 120 | AO2: 45 | AP2: 65 | AQ2: 85 | AR2: 95 | AS2: 110 | AT2: 120 | AU2: 125 | AV2: 135 | AW2: 80 | AX2: 90 | AY2: 110 | AZ2: 130 | BA2: 145 | BB2: 150 | BC2: 155 | BD2: 165 | BE2: 95 | BF2: 120 | BG2: 130 | BH2: 150 | BI2: 165 | BJ2: 170 | BK2: 175 | BL2: 185
B3: DEPARTEMENTAL | C3: 25 | D3: 30 | E3: 35 | F3: 45 | G3: 50 | H3: 55 | I3: 60 | J3: 70 | K3: 40 | L3: 45 | M3: 55 | N3: 60 | O3: 65 | P3: 70 | Q3: 80 | R3: 55 | S3: 65 | T3: 70 | U3: 75 | V3: 80 | W3: 95 | X3: 100 | Y3: 65 | Z3: 75 | AA3: 80 | AB3: 85 | AC3: 90 | AD3: 105 | AE3: 110 | AF3: 50 | AG3: 55 | AH3: 70 | AI3: 95 | AJ3: 105 | AK3: 110 | AL3: 120 | AM3: 130 | AN3: 140 | AO3: 65 | AP3: 85 | AQ3: 105 | AR3: 115 | AS3: 130 | AT3: 140 | AU3: 145 | AV3: 155 | AW3: 100 | AX3: 120 | AY3: 130 | AZ3: 150 | BA3: 165 | BB3: 170 | BC3: 175 | BD3: 185 | BE3: 115 | BF3: 135 | BG3: 150 | BH3: 170 | BI3: 185 | BJ3: 190 | BK3: 195 | BL3: 205
B4: REGIONAL | C4: 35 | D4: 40 | E4: 45 | F4: 55 | G4: 60 | H4: 65 | I4: 70 | J4: 80 | K4: 50 | L4: 55 | M4: 65 | N4: 70 | O4: 75 | P4: 80 | Q4: 95 | R4: 65 | S4: 75 | T4: 80 | U4: 85 | V4: 90 | W4: 105 | X4: 110 | Y4: 75 | Z4: 85 | AA4: 90 | AB4: 95 | AC4: 105 | AD4: 115 | AE4: 125 | AF4: 60 | AG4: 65 | AH4: 85 | AI4: 105 | AJ4: 115 | AK4: 130 | AL4: 140 | AM4: 145 | AN4: 155 | AO4: 80 | AP4: 100 | AQ4: 120 | AR4: 130 | AS4: 150 | AT4: 160 | AU4: 165 | AV4: 175 | AW4: 115 | AX4: 135 | AY4: 150 | AZ4: 170 | BA4: 185 | BB4: 190 | BC4: 195 | BD4: 205 | BE4: 130 | BF4: 150 | BG4: 170 | BH4: 190 | BI4: 205 | BJ4: 215 | BK4: 220 | BL4: 225
B5: INTERREGIONAL | C5: 45 | D5: 50 | E5: 55 | F5: 65 | G5: 70 | H5: 75 | I5: 80 | J5: 95 | K5: 60 | L5: 65 | M5: 75 | N5: 80 | O5: 85 | P5: 90 | Q5: 105 | R5: 75 | S5: 85 | T5: 90 | U5: 95 | V5: 105 | W5: 115 | X5: 125 | Y5: 85 | Z5: 95 | AA5: 100 | AB5: 110 | AC5: 120 | AD5: 130 | AE5: 140 | AF5: 75 | AG5: 80 | AH5: 100 | AI5: 120 | AJ5: 130 | AK5: 150 | AL5: 160 | AM5: 165 | AN5: 175 | AO5: 95 | AP5: 115 | AQ5: 135 | AR5: 150 | AS5: 170 | AT5: 180 | AU5: 185 | AV5: 195 | AW5: 130 | AX5: 150 | AY5: 170 | AZ5: 190 | BA5: 205 | BB5: 215 | BC5: 220 | BD5: 225 | BE5: 145 | BF5: 170 | BG5: 190 | BH5: 210 | BI5: 225 | BJ5: 235 | BK5: 245 | BL5: 250
B6: FEDERAL | C6: 50 | D6: 60 | E6: 65 | F6: 75 | G6: 80 | H6: 85 | I6: 90 | J6: 105 | K6: 70 | L6: 75 | M6: 85 | N6: 90 | O6: 95 | P6: 105 | Q6: 115 | R6: 85 | S6: 95 | T6: 100 | U6: 110 | V6: 120 | W6: 130 | X6: 140 | Y6: 95 | Z6: 105 | AA6: 115 | AB6: 125 | AC6: 135 | AD6: 145 | AE6: 150 | AF6: 90 | AG6: 95 | AH6: 115 | AI6: 135 | AJ6: 150 | AK6: 170 | AL6: 180 | AM6: 185 | AN6: 195 | AO6: 110 | AP6: 130 | AQ6: 150 | AR6: 170 | AS6: 185 | AT6: 200 | AU6: 210 | AV6: 220 | AW6: 145 | AX6: 170 | AY6: 190 | AZ6: 210 | BA6: 225 | BB6: 235 | BC6: 245 | BD6: 250 | BE6: 170 | BF6: 190 | BG6: 220 | BH6: 240 | BI6: 250 | BJ6: 260 | BK6: 270 | BL6: 280
B7: NATIONAL | C7: 60 | D7: 70 | E7: 75 | F7: 85 | G7: 90 | H7: 95 | I7: 105 | J7: 115 | K7: 80 | L7: 85 | M7: 95 | N7: 100 | O7: 110 | P7: 120 | Q7: 130 | R7: 95 | S7: 105 | T7: 115 | U7: 125 | V7: 135 | W7: 145 | X7: 150 | Y7: 110 | Z7: 120 | AA7: 130 | AB7: 140 | AC7: 150 | AD7: 160 | AE7: 170 | AF7: 105 | AG7: 110 | AH7: 130 | AI7: 150 | AJ7: 170 | AK7: 185 | AL7: 200 | AM7: 210 | AN7: 220 | AO7: 120 | AP7: 145 | AQ7: 170 | AR7: 190 | AS7: 200 | AT7: 220 | AU7: 225 | AV7: 235 | AW7: 170 | AX7: 190 | AY7: 220 | AZ7: 240 | BA7: 250 | BB7: 260 | BC7: 270 | BD7: 280 | BE7: 190 | BF7: 210 | BG7: 240 | BH7: 265 | BI7: 280 | BJ7: 290 | BK7: 300 | BL7: 310
B8: INTERNATIONAL B | C8: 70 | D8: 80 | E8: 85 | F8: 95 | G8: 100 | H8: 110 | I8: 120 | J8: 130 | K8: 90 | L8: 95 | M8: 105 | N8: 115 | O8: 125 | P8: 135 | Q8: 145 | R8: 110 | S8: 120 | T8: 130 | U8: 140 | V8: 150 | W8: 160 | X8: 170 | Y8: 125 | Z8: 140 | AA8: 150 | AB8: 160 | AC8: 170 | AD8: 180 | AE8: 190 | AF8: 115 | AG8: 120 | AH8: 145 | AI8: 170 | AJ8: 190 | AK8: 200 | AL8: 220 | AM8: 225 | AN8: 235 | AO8: 135 | AP8: 170 | AQ8: 190 | AR8: 210 | AS8: 220 | AT8: 240 | AU8: 250 | AV8: 260 | AW8: 190 | AX8: 210 | AY8: 240 | AZ8: 260 | BA8: 280 | BB8: 290 | BC8: 300 | BD8: 310 | BE8: 210 | BF8: 230 | BG8: 260 | BH8: 285 | BI8: 300 | BJ8: 310 | BK8: 325 | BL8: 330
B9: INTERNATIONAL A | C9: 80 | D9: 90 | E9: 95 | F9: 105 | G9: 115 | H9: 125 | I9: 135 | J9: 145 | K9: 100 | L9: 110 | M9: 120 | N9: 130 | O9: 140 | P9: 150 | Q9: 160 | R9: 125 | S9: 135 | T9: 150 | U9: 160 | V9: 170 | W9: 180 | X9: 190 | Y9: 140 | Z9: 160 | AA9: 170 | AB9: 180 | AC9: 190 | AD9: 195 | AE9: 210 | AF9: 130 | AG9: 135 | AH9: 170 | AI9: 190 | AJ9: 210 | AK9: 220 | AL9: 240 | AM9: 250 | AN9: 260 | AO9: 150 | AP9: 190 | AQ9: 210 | AR9: 230 | AS9: 250 | AT9: 260 | AU9: 280 | AV9: 280 | AW9: 210 | AX9: 230 | AY9: 250 | AZ9: 285 | BA9: 300 | BB9: 310 | BC9: 325 | BD9: 330 | BE9: 225 | BF9: 255 | BG9: 275 | BH9: 305 | BI9: 325 | BJ9: 330 | BK9: 345 | BL9: 355
B10: OLYMPIQUE | C10: 1000 | D10: 1000 | E10: 1000 | F10: 1000 | G10: 1000 | H10: 1000 | I10: 1000 | J10: 1000 | K10: 1000 | L10: 1000 | M10: 1000 | N10: 1000 | O10: 1000 | P10: 1000 | Q10: 1000 | R10: 1000 | S10: 1000 | T10: 1000 | U10: 1000 | V10: 1000 | W10: 1000 | X10: 1000 | Y10: 155 | Z10: 175 | AA10: 190 | AB10: 200 | AC10: 205 | AD10: 210 | AE10: 225 | AF10: 1000 | AG10: 1000 | AH10: 1000 | AI10: 1000 | AJ10: 1000 | AK10: 1000 | AL10: 10000 | AM10: 1000 | AN10: 1000 | AO10: 1000 | AP10: 1000 | AQ10: 1000 | AR10: 1000 | AS10: 1000 | AT10: 10000 | AU10: 1000 | AV10: 1000 | AW10: 1000 | AX10: 1000 | AY10: 1000 | AZ10: 10000 | BA10: 1000 | BB10: 1000 | BC10: 1000 | BD10: 10000 | BE10: 240 | BF10: 270 | BG10: 290 | BH10: 320 | BI10: 345 | BJ10: 355 | BK10: 365 | BL10: 375
B11: MINIME | C11: CADET | D11: CADET | E11: JUNIOR | F11: SENIOR | H11: MINIME | I11: CADETTE | J11: CADETTE | K11: JUNIOR | L11: SENIOR
A12: 20.01 | B12: NON | C12: C1 45 | D12: C2 50 | E12: J56 | F12: S56 | G12: 20.01 | H12: NON | I12: FC1 40 | J12: FC2 44 | K12: FJ48 | L12: FS48
A13: 34.01 | B13: NON | C13: C1 45 | D13: C2 50 | E13: J56 | F13: S56 | G13: 30.01 | H13: NON | I13: FC1 40 | J13: FC2 44 | K13: FJ48 | L13: FS48
A14: 38.01 | B14: NON | C14: C1 45 | D14: C2 50 | E14: J56 | F14: S56 | G14: 35.01 | H14: NON | I14: FC1 40 | J14: FC2 44 | K14: FJ48 | L14: FS48
A15: 40.01 | B15: NON | C15: C1 45 | D15: C2 50 | E15: J56 | F15: S56 | G15: 36.01 | H15: NON | I15: FC1 40 | J15: FC2 44 | K15: FJ48 | L15: FS48
A16: 45.01 | B16: NON | C16: C1 50 | D16: C2 50 | E16: J56 | F16: S56 | G16: 40.01 | H16: NON | I16: FC1 44 | J16: FC2 44 | K16: FJ48 | L16: FS48
A17: 50.01 | B17: NON | C17: C1 56 | D17: C2 56 | E17: J56 | F17: S56 | G17: 44.01 | H17: NON | I17: FC1 48 | J17: FC2 48 | K17: FJ48 | L17: FS48
A18: 52.05 | B18: NON | C18: C1 56 | D18: C2 56 | E18: J56 | F18: S56 | G18: 48.01 | H18: NON | I18: FC1 53 | J18: FC2 53 | K18: FJ53 | L18: FS53
A19: 56.01 | B19: NON | C19: C1 62 | D19: C2 62 | E19: J62 | F19: S62 | G19: 53.01 | H19: NON | I19: FC1 58 | J19: FC2 58 | K19: FJ58 | L19: FS58
A20: 62.01 | B20: NON | C20: C1 69 | D20: C2 69 | E20: J69 | F20: S69 | G20: 58.01 | H20: NON | I20: FC1 63 | J20: FC2 63 | K20: FJ63 | L20: FS63
A21: 69.01 | B21: NON | C21: C1 77 | D21: C2 77 | E21: J77 | F21: S77 | G21: 63.01 | H21: NON | I21: FC1 69 | J21: FC2 69 | K21: FJ69 | L21: FS69
A22: 77.01 | B22: NON | C22: C1 85 | D22: C2 85 | E22: J85 | F22: S85 | G22: 69.01 | H22: NON | I22: FC1 +69 | J22: FC2 +69 | K22: FJ75 | L22: FS75
A23: 85.01 | B23: NON | C23: C1 94 | D23: C2 94 | E23: J94 | F23: S94 | G23: 75.01 | H23: NON | I23: FC1 +69 | J23: FC2 +69 | K23: FJ+75 | L23: FS+75
A24: 94.01 | B24: NON | C24: C1 +94 | D24: C2 +94 | E24: J105 | F24: S105 | G24: 110 | H24: NON | I24: FC1 +69 | J24: FC2 +69 | K24: FJ+75 | L24: FS+75
A25: 105.01 | B25: NON | C25: C1 +94 | D25: C2 +94 | E25: J+105 | F25: S+105 | G25: 140 | H25: NON | I25: FC1 +69 | J25: FC2 +69 | K25: FJ+75 | L25: FS+75
A26: 110 | B26: NON | C26: C1 +94 | D26: C2 +94 | E26: J+105 | F26: S+105
A27: 120 | B27: NON | C27: C1 +94 | D27: C2 +94 | E27: J+105 | F27: S+105
A28: 130 | B28: NON | C28: C1 +94 | D28: C2 +94 | E28: J+105 | F28: S+105
A29: 140 | B29: NON | C29: C1 +94 | D29: C2 +94 | E29: J+105 | F29: S+105

Sheet HA-FA Filles
D1: EPREUVE : | F1: HALTEROPHILIE | J1: HALTERO/FORCE | Q1: DATE : | R1: 2015-05-12
D2: LIEU : | F2: CLERMONT L'HERAULT | K2: CFU 2015 | R2: ZONE : | T2: SUD
A4: CAT.POIDS | B4: CL.HA | C4: CL.FA | D4: LICENCE | E4: NOMS | F4: Prénoms | G4: AS | H4: Académie | I4: AN | J4: POIDS | K4: 1 | L4: 2 | M4: 3 | N4: ARR | O4: 1 | P4: 2 | Q4: 3 | R4: EP-J | S4: Total HA | T4: 1 | U4: 2 | V4: 3 | W4: DC | X4: Total FA | Y4: SERIE | AA4: Catég | AB4: IWF | AE4: DEB | AF4: DEP + | AG4: REG + | AH4: IRG + | AI4: FED + | AJ4: NAT + | AK4: INTB + | AL4: INTA + | AM4: OLY +
A5: 53 kg | B5: 2 | C5: 1 | D5: B10U090677 | E5: SEIGNEUR | F5: MANON | G5: Université de Picardie | H5: AMIENS | J5: 52.8 | K5: 48 | L5: -50 | M5: -50 | N5: =IF(J5="","",IF(MAXA(K5:M5)<=0,0,MAXA(K5:M5))) -> 48 | O5: 55 | P5: 60 | Q5: -63 | R5: =IF(J5="","",IF(MAXA(O5:Q5)<=0,0,MAXA(O5:Q5))) -> 60 | S5: =IF(J5="","",IF(OR(N5=0,R5=0),0,N5+R5)) -> 108 | T5: 30 | U5: 32.5 | V5: 35 | W5: =IF(J5="","",IF(MAXA(T5:V5)<=0,0,MAXA(T5:V5))) -> 35 | X5: =IF(J5="","",IF(OR(R5=0,W5=0),0,R5+W5)) -> 95 | Y5: =IF(J5="","",AT5) ->  | Z5: =IF(AM5>=0,AM5,IF(AL5>=0,AL5,IF(AK5>=0,AK5,IF(AJ5>=0,AJ5,IF(AI5>=0,AI5,IF(AH5>=0,AH5,IF(AG5>=0,AG5,IF(AF5>=0,AF5,AE5)))))))) ->  | AA5: =IF(J5="","",IF(#REF!="H",IF(OR(I5="SEN",I5<1995),VLOOKUP(J5,[1]Feuil1!$A$11:$G$29,6),IF(AND(I5>1994,I5<1998),VLOOKUP(J5,[1]Feuil1!$A$11:$G$29,5),IF(AND(I5>1997,I5<2000),VLOOKUP(J5,[1]Feuil1!$A$11:$G$29,4),IF(AND(I5>1999,I5<2002),VLOOKUP(J5,[1]Feuil1!$A$11:$G$29,3),VLOOKUP(J5,[1]Feuil1!$A$11:$G$29,2))))),IF(OR(I5="SEN",I5<1995),VLOOKUP(J5,[1]Feuil1!$G$11:$L$25,6),IF(AND(I5>1994,I5<1998),VLOOKUP(J5,[1]Feuil1!$G$11:$L$25,5),IF(AND(I5>1997,I5<2000),VLOOKUP(J5,[1]Feuil1!$G$11:$L$25,4),IF(AND(I5>1999,I5<2002),VLOOKUP(J5,[1]Feuil1!$G$11:$L$25,3),VLOOKUP(J5,[1]Feuil1!$G$11:$L$25,2))))))) ->  | AB5: =IF(J5="","",IF(#REF!="H",10^(0.794358141*LOG(J5/174.393)^2)*S5,IF(#REF!="F",10^(0.89726074*LOG(J5/148.026)^2)*S5,""))) ->  | AE5: =S5-HLOOKUP(AA5,[1]Feuil1!$C$1:$BL$10,2,FALSE) ->  | AF5: =S5-HLOOKUP(AA5,[1]Feuil1!$C$1:$BL$10,3,FALSE) ->  | AG5: =S5-HLOOKUP(AA5,[1]Feuil1!$C$1:$BL$10,4,FALSE) ->  | AH5: =S5-HLOOKUP(AA5,[1]Feuil1!$C$1:$BL$10,5,FALSE) ->  | AI5: =S5-HLOOKUP(AA5,[1]Feuil1!$C$1:$BL$10,6,FALSE) ->  | AJ5: =S5-HLOOKUP(AA5,[1]Feuil1!$C$1:$BL$10,7,FALSE) ->  | AK5: =S5-HLOOKUP(AA5,[1]Feuil1!$C$1:$BL$10,8,FALSE) ->  | AL5: =S5-HLOOKUP(AA5,[1]Feuil1!$C$1:$BL$10,9,FALSE) ->  | AM5: =S5-HLOOKUP(AA5,[1]Feuil1!$C$1:$BL$10,10,FALSE) ->  | AT5: =IF(AM5>=0,$AM$4,IF(AL5>=0,$AL$4,IF(AK5>=0,$AK$4,IF(AJ5>=0,$AJ$4,IF(AI5>=0,$AI$4,IF(AH5>=0,$AH$4,IF(AG5>=0,$AG$4,IF(AF5>=0,$AF$4,$AE$4)))))))) -> 
B6: 1 | D6: B101004633 | E6: CARON | F6: AMELIE | G6: Université de Picardie | H6: AMIENS | J6: 53 | K6: 50 | L6: 55 | M6: 58 | N6: =IF(J6="","",IF(MAXA(K6:M6)<=0,0,MAXA(K6:M6))) -> 58 | O6: 60 | P6: 65 | Q6: -68 | R6: 65 | S6: =IF(J6="","",IF(OR(N6=0,R6=0),0,N6+R6)) -> 123 | W6: =IF(I6="","",IF(MAXA(T6:V6)<=0,0,MAXA(T6:V6))) ->  | X6: =IF(I6="","",IF(OR(R6=0,W6=0),0,R6+W6)) ->  | Y6: =IF(I6="","",AT6) ->  | AA6: =IF(J6="","",IF(#REF!="H",IF(OR(I6="SEN",I6<1995),VLOOKUP(J6,[1]Feuil1!$A$11:$G$29,6),IF(AND(I6>1994,I6<1998),VLOOKUP(J6,[1]Feuil1!$A$11:$G$29,5),IF(AND(I6>1997,I6<2000),VLOOKUP(J6,[1]Feuil1!$A$11:$G$29,4),IF(AND(I6>1999,I6<2002),VLOOKUP(J6,[1]Feuil1!$A$11:$G$29,3),VLOOKUP(J6,[1]Feuil1!$A$11:$G$29,2))))),IF(OR(I6="SEN",I6<1995),VLOOKUP(J6,[1]Feuil1!$G$11:$L$25,6),IF(AND(I6>1994,I6<1998),VLOOKUP(J6,[1]Feuil1!$G$11:$L$25,5),IF(AND(I6>1997,I6<2000),VLOOKUP(J6,[1]Feuil1!$G$11:$L$25,4),IF(AND(I6>1999,I6<2002),VLOOKUP(J6,[1]Feuil1!$G$11:$L$25,3),VLOOKUP(J6,[1]Feuil1!$G$11:$L$25,2))))))) ->  | AB6: =IF(J6="","",IF(#REF!="H",10^(0.794358141*LOG(J6/174.393)^2)*S6,IF(#REF!="F",10^(0.89726074*LOG(J6/148.026)^2)*S6,""))) ->  | AE6: =S6-HLOOKUP(AA6,[1]Feuil1!$C$1:$BL$10,2,FALSE) ->  | AF6: =S6-HLOOKUP(AA6,[1]Feuil1!$C$1:$BL$10,3,FALSE) ->  | AG6: =S6-HLOOKUP(AA6,[1]Feuil1!$C$1:$BL$10,4,FALSE) ->  | AH6: =S6-HLOOKUP(AA6,[1]Feuil1!$C$1:$BL$10,5,FALSE) ->  | AI6: =S6-HLOOKUP(AA6,[1]Feuil1!$C$1:$BL$10,6,FALSE) ->  | AJ6: =S6-HLOOKUP(AA6,[1]Feuil1!$C$1:$BL$10,7,FALSE) ->  | AK6: =S6-HLOOKUP(AA6,[1]Feuil1!$C$1:$BL$10,8,FALSE) ->  | AL6: =S6-HLOOKUP(AA6,[1]Feuil1!$C$1:$BL$10,9,FALSE) ->  | AM6: =S6-HLOOKUP(AA6,[1]Feuil1!$C$1:$BL$10,10,FALSE) -> 
B7: 3 | D7: NN11093541 | E7: HERRING | F7: LAUREEN | G7: UNIVERSITE MONTPELLIER STAPS | H7: MONTPELLIER | J7: 52.8 | K7: 36 | L7: 39 | M7: -41 | N7: =IF(J7="","",IF(MAXA(K7:M7)<=0,0,MAXA(K7:M7))) -> 39 | O7: 45 | P7: 47 | Q7: 49 | R7: 49 | S7: =IF(J7="","",IF(OR(N7=0,R7=0),0,N7+R7)) -> 88 | W7: =IF(I7="","",IF(MAXA(T7:V7)<=0,0,MAXA(T7:V7))) ->  | X7: =IF(I7="","",IF(OR(R7=0,W7=0),0,R7+W7)) ->  | AA7: =IF(J7="","",IF(#REF!="H",IF(OR(I7="SEN",I7<1995),VLOOKUP(J7,[1]Feuil1!$A$11:$G$29,6),IF(AND(I7>1994,I7<1998),VLOOKUP(J7,[1]Feuil1!$A$11:$G$29,5),IF(AND(I7>1997,I7<2000),VLOOKUP(J7,[1]Feuil1!$A$11:$G$29,4),IF(AND(I7>1999,I7<2002),VLOOKUP(J7,[1]Feuil1!$A$11:$G$29,3),VLOOKUP(J7,[1]Feuil1!$A$11:$G$29,2))))),IF(OR(I7="SEN",I7<1995),VLOOKUP(J7,[1]Feuil1!$G$11:$L$25,6),IF(AND(I7>1994,I7<1998),VLOOKUP(J7,[1]Feuil1!$G$11:$L$25,5),IF(AND(I7>1997,I7<2000),VLOOKUP(J7,[1]Feuil1!$G$11:$L$25,4),IF(AND(I7>1999,I7<2002),VLOOKUP(J7,[1]Feuil1!$G$11:$L$25,3),VLOOKUP(J7,[1]Feuil1!$G$11:$L$25,2))))))) ->  | AB7: =IF(J7="","",IF(#REF!="H",10^(0.794358141*LOG(J7/174.393)^2)*S7,IF(#REF!="F",10^(0.89726074*LOG(J7/148.026)^2)*S7,""))) ->  | AE7: =S7-HLOOKUP(AA7,[1]Feuil1!$C$1:$BL$10,2,FALSE) ->  | AF7: =S7-HLOOKUP(AA7,[1]Feuil1!$C$1:$BL$10,3,FALSE) ->  | AG7: =S7-HLOOKUP(AA7,[1]Feuil1!$C$1:$BL$10,4,FALSE) ->  | AH7: =S7-HLOOKUP(AA7,[1]Feuil1!$C$1:$BL$10,5,FALSE) ->  | AI7: =S7-HLOOKUP(AA7,[1]Feuil1!$C$1:$BL$10,6,FALSE) ->  | AJ7: =S7-HLOOKUP(AA7,[1]Feuil1!$C$1:$BL$10,7,FALSE) ->  | AK7: =S7-HLOOKUP(AA7,[1]Feuil1!$C$1:$BL$10,8,FALSE) ->  | AL7: =S7-HLOOKUP(AA7,[1]Feuil1!$C$1:$BL$10,9,FALSE) ->  | AM7: =S7-HLOOKUP(AA7,[1]Feuil1!$C$1:$BL$10,10,FALSE) -> 
A8: 58 kg | B8: 1 | C8: 3 | D8: B101078461 | E8: RIMBERT | F8: VANESSA | G8: Université de Picardie | H8: AMIENS | J8: 55.9 | K8: 42 | L8: -45 | M8: 45 | N8: =IF(J8="","",IF(MAXA(K8:M8)<=0,0,MAXA(K8:M8))) -> 45 | O8: 52 | P8: 55 | Q8: -58 | R8: 55 | S8: =IF(J8="","",IF(OR(N8=0,R8=0),0,N8+R8)) -> 100 | T8: 45 | U8: -47.5 | V8: -47.5 | W8: =IF(J8="","",IF(MAXA(T8:V8)<=0,0,MAXA(T8:V8))) -> 45 | X8: =IF(J8="","",IF(OR(R8=0,W8=0),0,R8+W8)) -> 100 | AA8: =IF(J8="","",IF(#REF!="H",IF(OR(I8="SEN",I8<1995),VLOOKUP(J8,[1]Feuil1!$A$11:$G$29,6),IF(AND(I8>1994,I8<1998),VLOOKUP(J8,[1]Feuil1!$A$11:$G$29,5),IF(AND(I8>1997,I8<2000),VLOOKUP(J8,[1]Feuil1!$A$11:$G$29,4),IF(AND(I8>1999,I8<2002),VLOOKUP(J8,[1]Feuil1!$A$11:$G$29,3),VLOOKUP(J8,[1]Feuil1!$A$11:$G$29,2))))),IF(OR(I8="SEN",I8<1995),VLOOKUP(J8,[1]Feuil1!$G$11:$L$25,6),IF(AND(I8>1994,I8<1998),VLOOKUP(J8,[1]Feuil1!$G$11:$L$25,5),IF(AND(I8>1997,I8<2000),VLOOKUP(J8,[1]Feuil1!$G$11:$L$25,4),IF(AND(I8>1999,I8<2002),VLOOKUP(J8,[1]Feuil1!$G$11:$L$25,3),VLOOKUP(J8,[1]Feuil1!$G$11:$L$25,2))))))) ->  | AB8: =IF(J8="","",IF(#REF!="H",10^(0.794358141*LOG(J8/174.393)^2)*S8,IF(#REF!="F",10^(0.89726074*LOG(J8/148.026)^2)*S8,""))) ->  | AE8: =S8-HLOOKUP(AA8,[1]Feuil1!$C$1:$BL$10,2,FALSE) ->  | AF8: =S8-HLOOKUP(AA8,[1]Feuil1!$C$1:$BL$10,3,FALSE) ->  | AG8: =S8-HLOOKUP(AA8,[1]Feuil1!$C$1:$BL$10,4,FALSE) ->  | AH8: =S8-HLOOKUP(AA8,[1]Feuil1!$C$1:$BL$10,5,FALSE) ->  | AI8: =S8-HLOOKUP(AA8,[1]Feuil1!$C$1:$BL$10,6,FALSE) ->  | AJ8: =S8-HLOOKUP(AA8,[1]Feuil1!$C$1:$BL$10,7,FALSE) ->  | AK8: =S8-HLOOKUP(AA8,[1]Feuil1!$C$1:$BL$10,8,FALSE) ->  | AL8: =S8-HLOOKUP(AA8,[1]Feuil1!$C$1:$BL$10,9,FALSE) ->  | AM8: =S8-HLOOKUP(AA8,[1]Feuil1!$C$1:$BL$10,10,FALSE) -> 
B9: 2 | C9: 4 | D9: NN11092927 | E9: GUIBAL | F9: EMMANUELLE | G9: UNIVERSITE MONTPELLIER STAPS | H9: MONTPELLIER | J9: 56.7 | K9: 35 | L9: 37 | M9: 39 | N9: =IF(J9="","",IF(MAXA(K9:M9)<=0,0,MAXA(K9:M9))) -> 39 | O9: 47 | P9: 50 | Q9: 52 | R9: 52 | S9: =IF(J9="","",IF(OR(N9=0,R9=0),0,N9+R9)) -> 91 | T9: 45 | U9: -47.5 | V9: -47.5 | W9: 45 | X9: 97 | AA9: =IF(J9="","",IF(#REF!="H",IF(OR(I9="SEN",I9<1995),VLOOKUP(J9,[1]Feuil1!$A$11:$G$29,6),IF(AND(I9>1994,I9<1998),VLOOKUP(J9,[1]Feuil1!$A$11:$G$29,5),IF(AND(I9>1997,I9<2000),VLOOKUP(J9,[1]Feuil1!$A$11:$G$29,4),IF(AND(I9>1999,I9<2002),VLOOKUP(J9,[1]Feuil1!$A$11:$G$29,3),VLOOKUP(J9,[1]Feuil1!$A$11:$G$29,2))))),IF(OR(I9="SEN",I9<1995),VLOOKUP(J9,[1]Feuil1!$G$11:$L$25,6),IF(AND(I9>1994,I9<1998),VLOOKUP(J9,[1]Feuil1!$G$11:$L$25,5),IF(AND(I9>1997,I9<2000),VLOOKUP(J9,[1]Feuil1!$G$11:$L$25,4),IF(AND(I9>1999,I9<2002),VLOOKUP(J9,[1]Feuil1!$G$11:$L$25,3),VLOOKUP(J9,[1]Feuil1!$G$11:$L$25,2))))))) ->  | AB9: =IF(J9="","",IF(#REF!="H",10^(0.794358141*LOG(J9/174.393)^2)*S9,IF(#REF!="F",10^(0.89726074*LOG(J9/148.026)^2)*S9,""))) ->  | AE9: =S9-HLOOKUP(AA9,[1]Feuil1!$C$1:$BL$10,2,FALSE) ->  | AF9: =S9-HLOOKUP(AA9,[1]Feuil1!$C$1:$BL$10,3,FALSE) ->  | AG9: =S9-HLOOKUP(AA9,[1]Feuil1!$C$1:$BL$10,4,FALSE) ->  | AH9: =S9-HLOOKUP(AA9,[1]Feuil1!$C$1:$BL$10,5,FALSE) ->  | AI9: =S9-HLOOKUP(AA9,[1]Feuil1!$C$1:$BL$10,6,FALSE) ->  | AJ9: =S9-HLOOKUP(AA9,[1]Feuil1!$C$1:$BL$10,7,FALSE) ->  | AK9: =S9-HLOOKUP(AA9,[1]Feuil1!$C$1:$BL$10,8,FALSE) ->  | AL9: =S9-HLOOKUP(AA9,[1]Feuil1!$C$1:$BL$10,9,FALSE) ->  | AM9: =S9-HLOOKUP(AA9,[1]Feuil1!$C$1:$BL$10,10,FALSE) -> 
C10: 1 | D10: F121098241 | E10: MOUILLIERE | F10: MANON | G10: PRE CLERMONT STAPS | H10: CLERMOND FD | J10: 57.9 | O10: 47 | P10: 49 | Q10: -52 | R10: 49 | T10: -60 | U10: 60 | V10: 62.5 | W10: 62.5 | X10: 111.5 | AA10: =IF(J10="","",IF(#REF!="H",IF(OR(I10="SEN",I10<1995),VLOOKUP(J10,[1]Feuil1!$A$11:$G$29,6),IF(AND(I10>1994,I10<1998),VLOOKUP(J10,[1]Feuil1!$A$11:$G$29,5),IF(AND(I10>1997,I10<2000),VLOOKUP(J10,[1]Feuil1!$A$11:$G$29,4),IF(AND(I10>1999,I10<2002),VLOOKUP(J10,[1]Feuil1!$A$11:$G$29,3),VLOOKUP(J10,[1]Feuil1!$A$11:$G$29,2))))),IF(OR(I10="SEN",I10<1995),VLOOKUP(J10,[1]Feuil1!$G$11:$L$25,6),IF(AND(I10>1994,I10<1998),VLOOKUP(J10,[1]Feuil1!$G$11:$L$25,5),IF(AND(I10>1997,I10<2000),VLOOKUP(J10,[1]Feuil1!$G$11:$L$25,4),IF(AND(I10>1999,I10<2002),VLOOKUP(J10,[1]Feuil1!$G$11:$L$25,3),VLOOKUP(J10,[1]Feuil1!$G$11:$L$25,2))))))) ->  | AB10: =IF(J10="","",IF(#REF!="H",10^(0.794358141*LOG(J10/174.393)^2)*S10,IF(#REF!="F",10^(0.89726074*LOG(J10/148.026)^2)*S10,""))) ->  | AE10: =S10-HLOOKUP(AA10,[1]Feuil1!$C$1:$BL$10,2,FALSE) ->  | AF10: =S10-HLOOKUP(AA10,[1]Feuil1!$C$1:$BL$10,3,FALSE) ->  | AG10: =S10-HLOOKUP(AA10,[1]Feuil1!$C$1:$BL$10,4,FALSE) ->  | AH10: =S10-HLOOKUP(AA10,[1]Feuil1!$C$1:$BL$10,5,FALSE) ->  | AI10: =S10-HLOOKUP(AA10,[1]Feuil1!$C$1:$BL$10,6,FALSE) ->  | AJ10: =S10-HLOOKUP(AA10,[1]Feuil1!$C$1:$BL$10,7,FALSE) ->  | AK10: =S10-HLOOKUP(AA10,[1]Feuil1!$C$1:$BL$10,8,FALSE) ->  | AL10: =S10-HLOOKUP(AA10,[1]Feuil1!$C$1:$BL$10,9,FALSE) ->  | AM10: =S10-HLOOKUP(AA10,[1]Feuil1!$C$1:$BL$10,10,FALSE) -> 
C11: 2 | D11: NN11092943 | E11: MORO | F11: MARLENE | G11: UNIVERSITE MONTPELLIER STAPS | H11: MONTPELLIER | J11: 55.3 | O11: 45 | P11: -50 | Q11: 50 | R11: 50 | T11: 50 | U11: 55 | V11: -57.5 | W11: 55 | X11: 105 | AA11: =IF(J11="","",IF(#REF!="H",IF(OR(I11="SEN",I11<1995),VLOOKUP(J11,[1]Feuil1!$A$11:$G$29,6),IF(AND(I11>1994,I11<1998),VLOOKUP(J11,[1]Feuil1!$A$11:$G$29,5),IF(AND(I11>1997,I11<2000),VLOOKUP(J11,[1]Feuil1!$A$11:$G$29,4),IF(AND(I11>1999,I11<2002),VLOOKUP(J11,[1]Feuil1!$A$11:$G$29,3),VLOOKUP(J11,[1]Feuil1!$A$11:$G$29,2))))),IF(OR(I11="SEN",I11<1995),VLOOKUP(J11,[1]Feuil1!$G$11:$L$25,6),IF(AND(I11>1994,I11<1998),VLOOKUP(J11,[1]Feuil1!$G$11:$L$25,5),IF(AND(I11>1997,I11<2000),VLOOKUP(J11,[1]Feuil1!$G$11:$L$25,4),IF(AND(I11>1999,I11<2002),VLOOKUP(J11,[1]Feuil1!$G$11:$L$25,3),VLOOKUP(J11,[1]Feuil1!$G$11:$L$25,2))))))) ->  | AB11: =IF(J11="","",IF(#REF!="H",10^(0.794358141*LOG(J11/174.393)^2)*S11,IF(#REF!="F",10^(0.89726074*LOG(J11/148.026)^2)*S11,""))) ->  | AE11: =S11-HLOOKUP(AA11,[1]Feuil1!$C$1:$BL$10,2,FALSE) ->  | AF11: =S11-HLOOKUP(AA11,[1]Feuil1!$C$1:$BL$10,3,FALSE) ->  | AG11: =S11-HLOOKUP(AA11,[1]Feuil1!$C$1:$BL$10,4,FALSE) ->  | AH11: =S11-HLOOKUP(AA11,[1]Feuil1!$C$1:$BL$10,5,FALSE) ->  | AI11: =S11-HLOOKUP(AA11,[1]Feuil1!$C$1:$BL$10,6,FALSE) ->  | AJ11: =S11-HLOOKUP(AA11,[1]Feuil1!$C$1:$BL$10,7,FALSE) ->  | AK11: =S11-HLOOKUP(AA11,[1]Feuil1!$C$1:$BL$10,8,FALSE) ->  | AL11: =S11-HLOOKUP(AA11,[1]Feuil1!$C$1:$BL$10,9,FALSE) ->  | AM11: =S11-HLOOKUP(AA11,[1]Feuil1!$C$1:$BL$10,10,FALSE) -> 
A12: 63 kg | B12: 1 | D12: S600032478 | E12: FUGIER | F12: NOEMIE | G12: UPMC | H12: PARIS | J12: 62.9 | K12: 35 | L12: -40 | M12: 40 | N12: =IF(J12="","",IF(MAXA(K12:M12)<=0,0,MAXA(K12:M12))) -> 40 | O12: 58 | P12: 60 | Q12: -62 | R12: 60 | S12: =IF(J12="","",IF(OR(N12=0,R12=0),0,N12+R12)) -> 100 | T12: -42.5 | U12: -42.5 | V12: -42.5 | W12: 0 | X12: 0 | AA12: =IF(J12="","",IF(#REF!="H",IF(OR(I12="SEN",I12<1995),VLOOKUP(J12,[1]Feuil1!$A$11:$G$29,6),IF(AND(I12>1994,I12<1998),VLOOKUP(J12,[1]Feuil1!$A$11:$G$29,5),IF(AND(I12>1997,I12<2000),VLOOKUP(J12,[1]Feuil1!$A$11:$G$29,4),IF(AND(I12>1999,I12<2002),VLOOKUP(J12,[1]Feuil1!$A$11:$G$29,3),VLOOKUP(J12,[1]Feuil1!$A$11:$G$29,2))))),IF(OR(I12="SEN",I12<1995),VLOOKUP(J12,[1]Feuil1!$G$11:$L$25,6),IF(AND(I12>1994,I12<1998),VLOOKUP(J12,[1]Feuil1!$G$11:$L$25,5),IF(AND(I12>1997,I12<2000),VLOOKUP(J12,[1]Feuil1!$G$11:$L$25,4),IF(AND(I12>1999,I12<2002),VLOOKUP(J12,[1]Feuil1!$G$11:$L$25,3),VLOOKUP(J12,[1]Feuil1!$G$11:$L$25,2))))))) ->  | AB12: =IF(J12="","",IF(#REF!="H",10^(0.794358141*LOG(J12/174.393)^2)*S12,IF(#REF!="F",10^(0.89726074*LOG(J12/148.026)^2)*S12,""))) ->  | AE12: =S12-HLOOKUP(AA12,[1]Feuil1!$C$1:$BL$10,2,FALSE) ->  | AF12: =S12-HLOOKUP(AA12,[1]Feuil1!$C$1:$BL$10,3,FALSE) ->  | AG12: =S12-HLOOKUP(AA12,[1]Feuil1!$C$1:$BL$10,4,FALSE) ->  | AH12: =S12-HLOOKUP(AA12,[1]Feuil1!$C$1:$BL$10,5,FALSE) ->  | AI12: =S12-HLOOKUP(AA12,[1]Feuil1!$C$1:$BL$10,6,FALSE) ->  | AJ12: =S12-HLOOKUP(AA12,[1]Feuil1!$C$1:$BL$10,7,FALSE) ->  | AK12: =S12-HLOOKUP(AA12,[1]Feuil1!$C$1:$BL$10,8,FALSE) ->  | AL12: =S12-HLOOKUP(AA12,[1]Feuil1!$C$1:$BL$10,9,FALSE) ->  | AM12: =S12-HLOOKUP(AA12,[1]Feuil1!$C$1:$BL$10,10,FALSE) -> 
C13: 2 | D13: NN11092926 | E13: GRAS | F13: LISA | G13: UNIVERSITE MONTPELLIER STAPS | H13: MONTPELLIER | J13: 62.8 | N13: =IF(I13="","",IF(MAXA(K13:M13)<=0,0,MAXA(K13:M13))) ->  | O13: 45 | P13: -50 | Q13: -50 | R13: 45 | S13: =IF(I13="","",IF(OR(N13=0,R13=0),0,N13+R13)) ->  | T13: 50 | U13: -52.5 | V13: -52.5 | W13: 50 | X13: 95 | AA13: =IF(J13="","",IF(#REF!="H",IF(OR(I13="SEN",I13<1995),VLOOKUP(J13,[1]Feuil1!$A$11:$G$29,6),IF(AND(I13>1994,I13<1998),VLOOKUP(J13,[1]Feuil1!$A$11:$G$29,5),IF(AND(I13>1997,I13<2000),VLOOKUP(J13,[1]Feuil1!$A$11:$G$29,4),IF(AND(I13>1999,I13<2002),VLOOKUP(J13,[1]Feuil1!$A$11:$G$29,3),VLOOKUP(J13,[1]Feuil1!$A$11:$G$29,2))))),IF(OR(I13="SEN",I13<1995),VLOOKUP(J13,[1]Feuil1!$G$11:$L$25,6),IF(AND(I13>1994,I13<1998),VLOOKUP(J13,[1]Feuil1!$G$11:$L$25,5),IF(AND(I13>1997,I13<2000),VLOOKUP(J13,[1]Feuil1!$G$11:$L$25,4),IF(AND(I13>1999,I13<2002),VLOOKUP(J13,[1]Feuil1!$G$11:$L$25,3),VLOOKUP(J13,[1]Feuil1!$G$11:$L$25,2))))))) ->  | AB13: =IF(J13="","",IF(#REF!="H",10^(0.794358141*LOG(J13/174.393)^2)*S13,IF(#REF!="F",10^(0.89726074*LOG(J13/148.026)^2)*S13,""))) ->  | AE13: =S13-HLOOKUP(AA13,[1]Feuil1!$C$1:$BL$10,2,FALSE) ->  | AF13: =S13-HLOOKUP(AA13,[1]Feuil1!$C$1:$BL$10,3,FALSE) ->  | AG13: =S13-HLOOKUP(AA13,[1]Feuil1!$C$1:$BL$10,4,FALSE) ->  | AH13: =S13-HLOOKUP(AA13,[1]Feuil1!$C$1:$BL$10,5,FALSE) ->  | AI13: =S13-HLOOKUP(AA13,[1]Feuil1!$C$1:$BL$10,6,FALSE) ->  | AJ13: =S13-HLOOKUP(AA13,[1]Feuil1!$C$1:$BL$10,7,FALSE) ->  | AK13: =S13-HLOOKUP(AA13,[1]Feuil1!$C$1:$BL$10,8,FALSE) ->  | AL13: =S13-HLOOKUP(AA13,[1]Feuil1!$C$1:$BL$10,9,FALSE) ->  | AM13: =S13-HLOOKUP(AA13,[1]Feuil1!$C$1:$BL$10,10,FALSE) -> 
C14: 1 | D14: B101001277 | E14: JOURNO | F14: DELPHINE | G14: Université de Picardie | H14: AMIENS | J14: 59.4 | N14: =IF(I14="","",IF(MAXA(K14:M14)<=0,0,MAXA(K14:M14))) ->  | O14: 43 | P14: 45 | Q14: 50 | R14: 50 | S14: =IF(I14="","",IF(OR(N14=0,R14=0),0,N14+R14)) ->  | T14: 50 | U14: -52.5 | V14: -52.5 | W14: 50 | X14: 100 | AA14: =IF(J14="","",IF(#REF!="H",IF(OR(I14="SEN",I14<1995),VLOOKUP(J14,[1]Feuil1!$A$11:$G$29,6),IF(AND(I14>1994,I14<1998),VLOOKUP(J14,[1]Feuil1!$A$11:$G$29,5),IF(AND(I14>1997,I14<2000),VLOOKUP(J14,[1]Feuil1!$A$11:$G$29,4),IF(AND(I14>1999,I14<2002),VLOOKUP(J14,[1]Feuil1!$A$11:$G$29,3),VLOOKUP(J14,[1]Feuil1!$A$11:$G$29,2))))),IF(OR(I14="SEN",I14<1995),VLOOKUP(J14,[1]Feuil1!$G$11:$L$25,6),IF(AND(I14>1994,I14<1998),VLOOKUP(J14,[1]Feuil1!$G$11:$L$25,5),IF(AND(I14>1997,I14<2000),VLOOKUP(J14,[1]Feuil1!$G$11:$L$25,4),IF(AND(I14>1999,I14<2002),VLOOKUP(J14,[1]Feuil1!$G$11:$L$25,3),VLOOKUP(J14,[1]Feuil1!$G$11:$L$25,2))))))) ->  | AB14: =IF(J14="","",IF(#REF!="H",10^(0.794358141*LOG(J14/174.393)^2)*S14,IF(#REF!="F",10^(0.89726074*LOG(J14/148.026)^2)*S14,""))) ->  | AE14: =S14-HLOOKUP(AA14,[1]Feuil1!$C$1:$BL$10,2,FALSE) ->  | AF14: =S14-HLOOKUP(AA14,[1]Feuil1!$C$1:$BL$10,3,FALSE) ->  | AG14: =S14-HLOOKUP(AA14,[1]Feuil1!$C$1:$BL$10,4,FALSE) ->  | AH14: =S14-HLOOKUP(AA14,[1]Feuil1!$C$1:$BL$10,5,FALSE) ->  | AI14: =S14-HLOOKUP(AA14,[1]Feuil1!$C$1:$BL$10,6,FALSE) ->  | AJ14: =S14-HLOOKUP(AA14,[1]Feuil1!$C$1:$BL$10,7,FALSE) ->  | AK14: =S14-HLOOKUP(AA14,[1]Feuil1!$C$1:$BL$10,8,FALSE) ->  | AL14: =S14-HLOOKUP(AA14,[1]Feuil1!$C$1:$BL$10,9,FALSE) ->  | AM14: =S14-HLOOKUP(AA14,[1]Feuil1!$C$1:$BL$10,10,FALSE) -> 
A15: +63kg | C15: 1 | D15: NN11093059 | E15: REGNIER | F15: CLAIRE | G15: UNIVERSITE MONTPELLIER STAPS | H15: MONTPELLIER | J15: 63.9 | N15: =IF(I15="","",IF(MAXA(K15:M15)<=0,0,MAXA(K15:M15))) ->  | O15: 52 | P15: 55 | Q15: -58 | R15: 55 | S15: =IF(I15="","",IF(OR(N15=0,R15=0),0,N15+R15)) ->  | T15: 62.5 | U15: -65 | W15: 62.5 | X15: 117.5 | AA15: =IF(J15="","",IF(#REF!="H",IF(OR(I15="SEN",I15<1995),VLOOKUP(J15,[1]Feuil1!$A$11:$G$29,6),IF(AND(I15>1994,I15<1998),VLOOKUP(J15,[1]Feuil1!$A$11:$G$29,5),IF(AND(I15>1997,I15<2000),VLOOKUP(J15,[1]Feuil1!$A$11:$G$29,4),IF(AND(I15>1999,I15<2002),VLOOKUP(J15,[1]Feuil1!$A$11:$G$29,3),VLOOKUP(J15,[1]Feuil1!$A$11:$G$29,2))))),IF(OR(I15="SEN",I15<1995),VLOOKUP(J15,[1]Feuil1!$G$11:$L$25,6),IF(AND(I15>1994,I15<1998),VLOOKUP(J15,[1]Feuil1!$G$11:$L$25,5),IF(AND(I15>1997,I15<2000),VLOOKUP(J15,[1]Feuil1!$G$11:$L$25,4),IF(AND(I15>1999,I15<2002),VLOOKUP(J15,[1]Feuil1!$G$11:$L$25,3),VLOOKUP(J15,[1]Feuil1!$G$11:$L$25,2))))))) ->  | AB15: =IF(J15="","",IF(#REF!="H",10^(0.794358141*LOG(J15/174.393)^2)*S15,IF(#REF!="F",10^(0.89726074*LOG(J15/148.026)^2)*S15,""))) ->  | AE15: =S15-HLOOKUP(AA15,[1]Feuil1!$C$1:$BL$10,2,FALSE) ->  | AF15: =S15-HLOOKUP(AA15,[1]Feuil1!$C$1:$BL$10,3,FALSE) ->  | AG15: =S15-HLOOKUP(AA15,[1]Feuil1!$C$1:$BL$10,4,FALSE) ->  | AH15: =S15-HLOOKUP(AA15,[1]Feuil1!$C$1:$BL$10,5,FALSE) ->  | AI15: =S15-HLOOKUP(AA15,[1]Feuil1!$C$1:$BL$10,6,FALSE) ->  | AJ15: =S15-HLOOKUP(AA15,[1]Feuil1!$C$1:$BL$10,7,FALSE) ->  | AK15: =S15-HLOOKUP(AA15,[1]Feuil1!$C$1:$BL$10,8,FALSE) ->  | AL15: =S15-HLOOKUP(AA15,[1]Feuil1!$C$1:$BL$10,9,FALSE) ->  | AM15: =S15-HLOOKUP(AA15,[1]Feuil1!$C$1:$BL$10,10,FALSE) -> 
AE509: J77 | AF509: J85 | AG509: J94 | AH509: J105 | AI509: J+105 | AK509: J56 | AL509: J62 | AM509: J69 | AN509: J77 | AO509: J85 | AP509: J94 | AQ509: J105 | AR509: J+105 | AT509: S56 | AU509: S62 | AV509: S69 | AW509: S77 | AX509: S85 | AY509: S94 | AZ509: S105 | BA509: S+105
AE510: 145 | AF510: 160 | AG510: 170 | AH510: 180 | AI510: 190 | AK510: 100 | AL510: 115 | AM510: 130 | AN510: 145 | AO510: 160 | AP510: 170 | AQ510: 180 | AR510: 190 | AT510: 115 | AU510: 135 | AV510: 150 | AW510: 165 | AX510: 180 | AY510: 190 | AZ510: 200 | BA510: 210
AE511: 165 | AF511: 180 | AG511: 190 | AH511: 200 | AI511: 210 | AK511: 115 | AL511: 135 | AM511: 150 | AN511: 165 | AO511: 180 | AP511: 190 | AQ511: 200 | AR511: 210 | AT511: 130 | AU511: 150 | AV511: 165 | AW511: 185 | AX511: 200 | AY511: 210 | AZ511: 220 | BA511: 230
AE512: 185 | AF512: 200 | AG512: 210 | AH512: 220 | AI512: 230 | AK512: 130 | AL512: 150 | AM512: 165 | AN512: 185 | AO512: 200 | AP512: 210 | AQ512: 220 | AR512: 230 | AT512: 145 | AU512: 165 | AV512: 180 | AW512: 200 | AX512: 220 | AY512: 230 | AZ512: 240 | BA512: 250
AE513: 200 | AF513: 220 | AG513: 230 | AH513: 240 | AI513: 250 | AK513: 145 | AL513: 165 | AM513: 180 | AN513: 200 | AO513: 220 | AP513: 230 | AQ513: 240 | AR513: 250 | AT513: 175 | AU513: 195 | AV513: 215 | AW513: 235 | AX513: 250 | AY513: 260 | AZ513: 275 | BA513: 280
AE514: 235 | AF514: 250 | AG514: 260 | AH514: 275 | AI514: 280 | AK514: 175 | AL514: 195 | AM514: 215 | AN514: 235 | AO514: 250 | AP514: 260 | AQ514: 275 | AR514: 280 | AT514: 210 | AU514: 230 | AV514: 250 | AW514: 270 | AX514: 290 | AY514: 300 | AZ514: 310 | BA514: 325
AE515: 270 | AF515: 290 | AG515: 300 | AH515: 310 | AI515: 325 | AK515: 210 | AL515: 230 | AM515: 250 | AN515: 270 | AO515: 290 | AP515: 300 | AQ515: 310 | AR515: 325 | AT515: 230 | AU515: 255 | AV515: 275 | AW515: 300 | AX515: 315 | AY515: 335 | AZ515: 345 | BA515: 355
AE516: 320 | AF516: 335 | AG516: 355 | AH516: 370 | AI516: 380 | AK516: 245 | AL516: 270 | AM516: 295 | AN516: 320 | AO516: 335 | AP516: 355 | AQ516: 370 | AR516: 380 | AT516: 245 | AU516: 270 | AV516: 295 | AW516: 320 | AX516: 335 | AY516: 355 | AZ516: 370 | BA516: 380

Sheet HA-FA Garçons
D1: EPREUVE : | F1: HALTEROPHILIE | J1: HALTERO/FORCE | Q1: DATE : | R1: 2015-05-12
D2: LIEU : | F2: CLERMONT L'HERAULT | K2: CFU 2015 | R2: ZONE : | T2: SUD
A4: CAT.POIDS | B4: CL.HA | C4: CL.FA | D4: LICENCE | E4: NOMS | F4: Prénoms | G4: AS | H4: Académie | I4: AN | J4: POIDS | K4: 1 | L4: 2 | M4: 3 | N4: ARR | O4: 1 | P4: 2 | Q4: 3 | R4: EP-J | S4: Total HA | T4: 1 | U4: 2 | V4: 3 | W4: DC | X4: Total FA | AA4: DEB | AB4: DEP + | AC4: REG + | AD4: IRG + | AE4: FED + | AF4: NAT + | AG4: INTB + | AH4: INTA + | AI4: OLY +
A5: 62kg | B5: 1 | C5: 1 | D5: B101093380 | E5: DOLE | F5: ANDY | G5: Université de Picardie | H5: AMIENS | J5: 61.4 | K5: 60 | L5: -65 | M5: 65 | N5: =IF(J5="","",IF(MAXA(K5:M5)<=0,0,MAXA(K5:M5))) -> 65 | O5: -78 | P5: -78 | Q5: 78 | R5: =IF(J5="","",IF(MAXA(O5:Q5)<=0,0,MAXA(O5:Q5))) -> 78 | S5: =IF(J5="","",IF(OR(N5=0,R5=0),0,N5+R5)) -> 143 | T5: 90 | U5: -95 | V5: -95 | W5: =IF(J5="","",IF(MAXA(T5:V5)<=0,0,MAXA(T5:V5))) -> 90 | X5: =IF(J5="","",IF(OR(R5=0,W5=0),0,R5+W5)) -> 168 | AA5: =S5-HLOOKUP(#REF!,Feuil1!$C$1:$BL$10,2,FALSE) ->  | AB5: =S5-HLOOKUP(#REF!,Feuil1!$C$1:$BL$10,3,FALSE) ->  | AC5: =S5-HLOOKUP(#REF!,Feuil1!$C$1:$BL$10,4,FALSE) ->  | AD5: =S5-HLOOKUP(#REF!,Feuil1!$C$1:$BL$10,5,FALSE) ->  | AE5: =S5-HLOOKUP(#REF!,Feuil1!$C$1:$BL$10,6,FALSE) ->  | AF5: =S5-HLOOKUP(#REF!,Feuil1!$C$1:$BL$10,7,FALSE) ->  | AG5: =S5-HLOOKUP(#REF!,Feuil1!$C$1:$BL$10,8,FALSE) ->  | AH5: =S5-HLOOKUP(#REF!,Feuil1!$C$1:$BL$10,9,FALSE) ->  | AI5: =S5-HLOOKUP(#REF!,Feuil1!$C$1:$BL$10,10,FALSE) ->  | AP5: =IF(AI5>=0,$AI$4,IF(AH5>=0,$AH$4,IF(AG5>=0,$AG$4,IF(AF5>=0,$AF$4,IF(AE5>=0,$AE$4,IF(AD5>=0,$AD$4,IF(AC5>=0,$AC$4,IF(AB5>=0,$AB$4,$AA$4)))))))) -> 
D6: NN11093058 | E6: RAI ELBALHAA | F6: GREGORY | G6: UNIVERSITE MONTPELLIER STAPS | H6: MONTPELLIER | J6: 54.95 | O6: 70 | P6: 73 | Q6: -75 | R6: =IF(J6="","",IF(MAXA(O6:Q6)<=0,0,MAXA(O6:Q6))) -> 73 | T6: -87.5 | U6: -87.5 | V6: -87.5 | W6: =IF(J6="","",IF(MAXA(T6:V6)<=0,0,MAXA(T6:V6))) -> 0 | X6: =IF(J6="","",IF(OR(R6=0,W6=0),0,R6+W6)) -> 0 | AA6: =S6-HLOOKUP(#REF!,Feuil1!$C$1:$BL$10,2,FALSE) ->  | AB6: =S6-HLOOKUP(#REF!,Feuil1!$C$1:$BL$10,3,FALSE) ->  | AC6: =S6-HLOOKUP(#REF!,Feuil1!$C$1:$BL$10,4,FALSE) ->  | AD6: =S6-HLOOKUP(#REF!,Feuil1!$C$1:$BL$10,5,FALSE) ->  | AE6: =S6-HLOOKUP(#REF!,Feuil1!$C$1:$BL$10,6,FALSE) ->  | AF6: =S6-HLOOKUP(#REF!,Feuil1!$C$1:$BL$10,7,FALSE) ->  | AG6: =S6-HLOOKUP(#REF!,Feuil1!$C$1:$BL$10,8,FALSE) ->  | AH6: =S6-HLOOKUP(#REF!,Feuil1!$C$1:$BL$10,9,FALSE) ->  | AI6: =S6-HLOOKUP(#REF!,Feuil1!$C$1:$BL$10,10,FALSE) ->  | AP6: =IF(AI6>=0,$AI$4,IF(AH6>=0,$AH$4,IF(AG6>=0,$AG$4,IF(AF6>=0,$AF$4,IF(AE6>=0,$AE$4,IF(AD6>=0,$AD$4,IF(AC6>=0,$AC$4,IF(AB6>=0,$AB$4,$AA$4)))))))) -> 
C7: 2 | D7: S600049615 | E7: BOWEN | F7: Maximilien | G7: UPMC | H7: PARIS | J7: 68.65 | O7: 95 | P7: -100 | Q7: -100 | R7: 95 | T7: -107.5 | U7: 107.5 | V7: -115 | W7: =IF(J7="","",IF(MAXA(T7:V7)<=0,0,MAXA(T7:V7))) -> 107.5 | X7: 202.5
A8: 69kg | C8: 5 | D8: B101011691 | E8: LOORIUS | F8: JULIEN | G8: Université de Picardie | H8: AMIENS | J8: 67.15 | O8: 70 | P8: -75 | Q8: -75 | R8: 70 | T8: 110 | U8: 115 | V8: -117.5 | W8: =IF(J8="","",IF(MAXA(T8:V8)<=0,0,MAXA(T8:V8))) -> 115 | X8: 185 | AA8: =S8-HLOOKUP(#REF!,Feuil1!$C$1:$BL$10,2,FALSE) ->  | AB8: =S8-HLOOKUP(#REF!,Feuil1!$C$1:$BL$10,3,FALSE) ->  | AC8: =S8-HLOOKUP(#REF!,Feuil1!$C$1:$BL$10,4,FALSE) ->  | AD8: =S8-HLOOKUP(#REF!,Feuil1!$C$1:$BL$10,5,FALSE) ->  | AE8: =S8-HLOOKUP(#REF!,Feuil1!$C$1:$BL$10,6,FALSE) ->  | AF8: =S8-HLOOKUP(#REF!,Feuil1!$C$1:$BL$10,7,FALSE) ->  | AG8: =S8-HLOOKUP(#REF!,Feuil1!$C$1:$BL$10,8,FALSE) ->  | AH8: =S8-HLOOKUP(#REF!,Feuil1!$C$1:$BL$10,9,FALSE) ->  | AI8: =S8-HLOOKUP(#REF!,Feuil1!$C$1:$BL$10,10,FALSE) ->  | AP8: =IF(AI8>=0,$AI$4,IF(AH8>=0,$AH$4,IF(AG8>=0,$AG$4,IF(AF8>=0,$AF$4,IF(AE8>=0,$AE$4,IF(AD8>=0,$AD$4,IF(AC8>=0,$AC$4,IF(AB8>=0,$AB$4,$AA$4)))))))) -> 
B9: 3 | C9: 3 | D9: B101090461 | E9: DUPUIS | F9: SIMON | G9: Université de Picardie | H9: AMIENS | J9: 65.05 | K9: -70 | L9: 70 | M9: -75 | N9: =IF(J9="","",IF(MAXA(K9:M9)<=0,0,MAXA(K9:M9))) -> 70 | O9: 95 | P9: -100 | Q9: 100 | R9: 100 | S9: =IF(J9="","",IF(OR(N9=0,R9=0),0,N9+R9)) -> 170 | T9: 85 | U9: 90 | V9: -95 | W9: 90 | X9: 190 | AA9: =S9-HLOOKUP(#REF!,Feuil1!$C$1:$BL$10,2,FALSE) ->  | AB9: =S9-HLOOKUP(#REF!,Feuil1!$C$1:$BL$10,3,FALSE) ->  | AC9: =S9-HLOOKUP(#REF!,Feuil1!$C$1:$BL$10,4,FALSE) ->  | AD9: =S9-HLOOKUP(#REF!,Feuil1!$C$1:$BL$10,5,FALSE) ->  | AE9: =S9-HLOOKUP(#REF!,Feuil1!$C$1:$BL$10,6,FALSE) ->  | AF9: =S9-HLOOKUP(#REF!,Feuil1!$C$1:$BL$10,7,FALSE) ->  | AG9: =S9-HLOOKUP(#REF!,Feuil1!$C$1:$BL$10,8,FALSE) ->  | AH9: =S9-HLOOKUP(#REF!,Feuil1!$C$1:$BL$10,9,FALSE) ->  | AI9: =S9-HLOOKUP(#REF!,Feuil1!$C$1:$BL$10,10,FALSE) -> 
C10: 4 | D10: B101083831 | E10: HECKENBENNER | F10: AXEL | G10: Université de Picardie | H10: AMIENS | J10: 64.1 | O10: -75 | P10: 75 | Q10: 80 | R10: 80 | T10: 95 | U10: 100 | V10: -105 | W10: 100 | X10: 180 | AA10: =S10-HLOOKUP(#REF!,Feuil1!$C$1:$BL$10,2,FALSE) ->  | AB10: =S10-HLOOKUP(#REF!,Feuil1!$C$1:$BL$10,3,FALSE) ->  | AC10: =S10-HLOOKUP(#REF!,Feuil1!$C$1:$BL$10,4,FALSE) ->  | AD10: =S10-HLOOKUP(#REF!,Feuil1!$C$1:$BL$10,5,FALSE) ->  | AE10: =S10-HLOOKUP(#REF!,Feuil1!$C$1:$BL$10,6,FALSE) ->  | AF10: =S10-HLOOKUP(#REF!,Feuil1!$C$1:$BL$10,7,FALSE) ->  | AG10: =S10-HLOOKUP(#REF!,Feuil1!$C$1:$BL$10,8,FALSE) ->  | AH10: =S10-HLOOKUP(#REF!,Feuil1!$C$1:$BL$10,9,FALSE) ->  | AI10: =S10-HLOOKUP(#REF!,Feuil1!$C$1:$BL$10,10,FALSE) -> 
B11: 2 | C11: 1 | D11: B101082692 | E11: OBEL | F11: ALEXANDRE | G11: Université de Picardie | H11: AMIENS | J11: 67.8 | K11: 73 | L11: 78 | M11: -82 | N11: 78 | O11: 100 | P11: 105 | Q11: 110 | R11: 110 | S11: 188 | T11: 110 | U11: 120 | V11: -122.5 | W11: 120 | X11: 230 | AA11: =S11-HLOOKUP(#REF!,Feuil1!$C$1:$BL$10,2,FALSE) ->  | AB11: =S11-HLOOKUP(#REF!,Feuil1!$C$1:$BL$10,3,FALSE) ->  | AC11: =S11-HLOOKUP(#REF!,Feuil1!$C$1:$BL$10,4,FALSE) ->  | AD11: =S11-HLOOKUP(#REF!,Feuil1!$C$1:$BL$10,5,FALSE) ->  | AE11: =S11-HLOOKUP(#REF!,Feuil1!$C$1:$BL$10,6,FALSE) ->  | AF11: =S11-HLOOKUP(#REF!,Feuil1!$C$1:$BL$10,7,FALSE) ->  | AG11: =S11-HLOOKUP(#REF!,Feuil1!$C$1:$BL$10,8,FALSE) ->  | AH11: =S11-HLOOKUP(#REF!,Feuil1!$C$1:$BL$10,9,FALSE) ->  | AI11: =S11-HLOOKUP(#REF!,Feuil1!$C$1:$BL$10,10,FALSE) -> 
D12: NN11096456 | E12: GREZ | F12: RODOLPHE | G12: UNIVERSITE MONTPELLIER STAPS | H12: MONTPELLIER | J12: 68.2 | K12: -75 | L12: -75 | M12: -80 | N12: 0 | R12: 0 | AA12: =S12-HLOOKUP(#REF!,Feuil1!$C$1:$BL$10,2,FALSE) ->  | AB12: =S12-HLOOKUP(#REF!,Feuil1!$C$1:$BL$10,3,FALSE) ->  | AC12: =S12-HLOOKUP(#REF!,Feuil1!$C$1:$BL$10,4,FALSE) ->  | AD12: =S12-HLOOKUP(#REF!,Feuil1!$C$1:$BL$10,5,FALSE) ->  | AE12: =S12-HLOOKUP(#REF!,Feuil1!$C$1:$BL$10,6,FALSE) ->  | AF12: =S12-HLOOKUP(#REF!,Feuil1!$C$1:$BL$10,7,FALSE) ->  | AG12: =S12-HLOOKUP(#REF!,Feuil1!$C$1:$BL$10,8,FALSE) ->  | AH12: =S12-HLOOKUP(#REF!,Feuil1!$C$1:$BL$10,9,FALSE) ->  | AI12: =S12-HLOOKUP(#REF!,Feuil1!$C$1:$BL$10,10,FALSE) -> 
B13: 1 | D13: B101029082 | E13: JEROME | F13: KEVIN | G13: Université de Picardie | H13: AMIENS | J13: 69 | K13: 90 | L13: 95 | M13: -100 | N13: 95 | O13: 110 | P13: 115 | Q13: 120 | R13: 120 | S13: 215 | T13: -90 | U13: -90 | V13: -90 | W13: 0 | AA13: =S13-HLOOKUP(#REF!,Feuil1!$C$1:$BL$10,2,FALSE) ->  | AB13: =S13-HLOOKUP(#REF!,Feuil1!$C$1:$BL$10,3,FALSE) ->  | AC13: =S13-HLOOKUP(#REF!,Feuil1!$C$1:$BL$10,4,FALSE) ->  | AD13: =S13-HLOOKUP(#REF!,Feuil1!$C$1:$BL$10,5,FALSE) ->  | AE13: =S13-HLOOKUP(#REF!,Feuil1!$C$1:$BL$10,6,FALSE) ->  | AF13: =S13-HLOOKUP(#REF!,Feuil1!$C$1:$BL$10,7,FALSE) ->  | AG13: =S13-HLOOKUP(#REF!,Feuil1!$C$1:$BL$10,8,FALSE) ->  | AH13: =S13-HLOOKUP(#REF!,Feuil1!$C$1:$BL$10,9,FALSE) ->  | AI13: =S13-HLOOKUP(#REF!,Feuil1!$C$1:$BL$10,10,FALSE) -> 
A14: 77kg | B14: 2 | C14: 1 | D14: B101009187 | E14: PECQUEUX | F14: MAXENCE | G14: Université de Picardie | H14: AMIENS | J14: 76.9 | K14: 100 | L14: 105 | M14: 109 | N14: 109 | O14: 135 | P14: 140 | Q14: -145 | R14: 140 | S14: 249 | T14: 115 | U14: 120 | V14: -125 | W14: =IF(J14="","",IF(MAXA(T14:V14)<=0,0,MAXA(T14:V14))) -> 120 | X14: 260 | AA14: =S14-HLOOKUP(#REF!,Feuil1!$C$1:$BL$10,2,FALSE) ->  | AB14: =S14-HLOOKUP(#REF!,Feuil1!$C$1:$BL$10,3,FALSE) ->  | AC14: =S14-HLOOKUP(#REF!,Feuil1!$C$1:$BL$10,4,FALSE) ->  | AD14: =S14-HLOOKUP(#REF!,Feuil1!$C$1:$BL$10,5,FALSE) ->  | AE14: =S14-HLOOKUP(#REF!,Feuil1!$C$1:$BL$10,6,FALSE) ->  | AF14: =S14-HLOOKUP(#REF!,Feuil1!$C$1:$BL$10,7,FALSE) ->  | AG14: =S14-HLOOKUP(#REF!,Feuil1!$C$1:$BL$10,8,FALSE) ->  | AH14: =S14-HLOOKUP(#REF!,Feuil1!$C$1:$BL$10,9,FALSE) ->  | AI14: =S14-HLOOKUP(#REF!,Feuil1!$C$1:$BL$10,10,FALSE) -> 
C15: 2 | D15: B101095451 | E15: ZIG | F15: WESLEY | G15: Université de Picardie | H15: AMIENS | J15: 77 | O15: 70 | P15: 75 | Q15: -80 | R15: 75 | T15: 115 | U15: 120 | V15: 125 | W15: 125 | X15: 200 | AA15: =S15-HLOOKUP(#REF!,Feuil1!$C$1:$BL$10,2,FALSE) ->  | AB15: =S15-HLOOKUP(#REF!,Feuil1!$C$1:$BL$10,3,FALSE) ->  | AC15: =S15-HLOOKUP(#REF!,Feuil1!$C$1:$BL$10,4,FALSE) ->  | AD15: =S15-HLOOKUP(#REF!,Feuil1!$C$1:$BL$10,5,FALSE) ->  | AE15: =S15-HLOOKUP(#REF!,Feuil1!$C$1:$BL$10,6,FALSE) ->  | AF15: =S15-HLOOKUP(#REF!,Feuil1!$C$1:$BL$10,7,FALSE) ->  | AG15: =S15-HLOOKUP(#REF!,Feuil1!$C$1:$BL$10,8,FALSE) ->  | AH15: =S15-HLOOKUP(#REF!,Feuil1!$C$1:$BL$10,9,FALSE) ->  | AI15: =S15-HLOOKUP(#REF!,Feuil1!$C$1:$BL$10,10,FALSE) -> 
B16: 3 | D16: NN11092096 | E16: SCHIPPER | F16: AUBRY-JAN | G16: UNIVERSITE MONTPELLIER STAPS | H16: MONTPELLIER | J16: 75.8 | K16: 103 | L16: 108 | M16: 110 | N16: 110 | O16: -132 | P16: 132 | Q16: -138 | R16: 132 | S16: 242 | W16: =IF(I16="","",IF(MAXA(T16:V16)<=0,0,MAXA(T16:V16))) ->  | AA16: =S16-HLOOKUP(#REF!,Feuil1!$C$1:$BL$10,2,FALSE) ->  | AB16: =S16-HLOOKUP(#REF!,Feuil1!$C$1:$BL$10,3,FALSE) ->  | AC16: =S16-HLOOKUP(#REF!,Feuil1!$C$1:$BL$10,4,FALSE) ->  | AD16: =S16-HLOOKUP(#REF!,Feuil1!$C$1:$BL$10,5,FALSE) ->  | AE16: =S16-HLOOKUP(#REF!,Feuil1!$C$1:$BL$10,6,FALSE) ->  | AF16: =S16-HLOOKUP(#REF!,Feuil1!$C$1:$BL$10,7,FALSE) ->  | AG16: =S16-HLOOKUP(#REF!,Feuil1!$C$1:$BL$10,8,FALSE) ->  | AH16: =S16-HLOOKUP(#REF!,Feuil1!$C$1:$BL$10,9,FALSE) ->  | AI16: =S16-HLOOKUP(#REF!,Feuil1!$C$1:$BL$10,10,FALSE) -> 
B17: 4 | D17: B101067535 | E17: MONSIGNA | F17: JOSS | G17: Université de Picardie | H17: AMIENS | J17: 70.8 | K17: 80 | L17: -86 | M17: 86 | N17: 86 | O17: 95 | P17: 100 | Q17: -105 | R17: 100 | S17: 186 | AA17: =S17-HLOOKUP(#REF!,Feuil1!$C$1:$BL$10,2,FALSE) ->  | AB17: =S17-HLOOKUP(#REF!,Feuil1!$C$1:$BL$10,3,FALSE) ->  | AC17: =S17-HLOOKUP(#REF!,Feuil1!$C$1:$BL$10,4,FALSE) ->  | AD17: =S17-HLOOKUP(#REF!,Feuil1!$C$1:$BL$10,5,FALSE) ->  | AE17: =S17-HLOOKUP(#REF!,Feuil1!$C$1:$BL$10,6,FALSE) ->  | AF17: =S17-HLOOKUP(#REF!,Feuil1!$C$1:$BL$10,7,FALSE) ->  | AG17: =S17-HLOOKUP(#REF!,Feuil1!$C$1:$BL$10,8,FALSE) ->  | AH17: =S17-HLOOKUP(#REF!,Feuil1!$C$1:$BL$10,9,FALSE) ->  | AI17: =S17-HLOOKUP(#REF!,Feuil1!$C$1:$BL$10,10,FALSE) -> 
B18: 1 | D18: NN11093081 | E18: AUCOUTURIER | F18: Yann | G18: UNIVERSITE MONTPELLIER STAPS | H18: MONTPELLIER | J18: 72.65 | K18: 120 | N18: 120 | O18: 150 | P18: 160 | R18: 160 | S18: 280 | AA18: =S18-HLOOKUP(#REF!,Feuil1!$C$1:$BL$10,2,FALSE) ->  | AB18: =S18-HLOOKUP(#REF!,Feuil1!$C$1:$BL$10,3,FALSE) ->  | AC18: =S18-HLOOKUP(#REF!,Feuil1!$C$1:$BL$10,4,FALSE) ->  | AD18: =S18-HLOOKUP(#REF!,Feuil1!$C$1:$BL$10,5,FALSE) ->  | AE18: =S18-HLOOKUP(#REF!,Feuil1!$C$1:$BL$10,6,FALSE) ->  | AF18: =S18-HLOOKUP(#REF!,Feuil1!$C$1:$BL$10,7,FALSE) ->  | AG18: =S18-HLOOKUP(#REF!,Feuil1!$C$1:$BL$10,8,FALSE) ->  | AH18: =S18-HLOOKUP(#REF!,Feuil1!$C$1:$BL$10,9,FALSE) ->  | AI18: =S18-HLOOKUP(#REF!,Feuil1!$C$1:$BL$10,10,FALSE) -> 
A19: 85kg | C19: 1 | D19: B101090682 | E19: ROBIN | F19: THOMAS | G19: Université de Picardie | H19: AMIENS | J19: 84.5 | O19: 106 | P19: 111 | Q19: 116 | R19: =IF(J19="","",IF(MAXA(O19:Q19)<=0,0,MAXA(O19:Q19))) -> 116 | T19: 122.5 | U19: 127.5 | V19: -132.5 | W19: =IF(J19="","",IF(MAXA(T19:V19)<=0,0,MAXA(T19:V19))) -> 127.5 | X19: 243.5 | AA19: =S19-HLOOKUP(#REF!,Feuil1!$C$1:$BL$10,2,FALSE) ->  | AB19: =S19-HLOOKUP(#REF!,Feuil1!$C$1:$BL$10,3,FALSE) ->  | AC19: =S19-HLOOKUP(#REF!,Feuil1!$C$1:$BL$10,4,FALSE) ->  | AD19: =S19-HLOOKUP(#REF!,Feuil1!$C$1:$BL$10,5,FALSE) ->  | AE19: =S19-HLOOKUP(#REF!,Feuil1!$C$1:$BL$10,6,FALSE) ->  | AF19: =S19-HLOOKUP(#REF!,Feuil1!$C$1:$BL$10,7,FALSE) ->  | AG19: =S19-HLOOKUP(#REF!,Feuil1!$C$1:$BL$10,8,FALSE) ->  | AH19: =S19-HLOOKUP(#REF!,Feuil1!$C$1:$BL$10,9,FALSE) ->  | AI19: =S19-HLOOKUP(#REF!,Feuil1!$C$1:$BL$10,10,FALSE) -> 
B20: 1 | D20: N330093492 | E20: BIJJI | F20: SAMI | G20: UPV MONTPELLIER | H20: MONTPELLIER | J20: 81.9 | K20: -115 | L20: 115 | M20: -122 | N20: =IF(J20="","",IF(MAXA(K20:M20)<=0,0,MAXA(K20:M20))) -> 115 | O20: 140 | R20: =IF(J20="","",IF(MAXA(O20:Q20)<=0,0,MAXA(O20:Q20))) -> 140 | S20: =IF(J20="","",IF(OR(N20=0,R20=0),0,N20+R20)) -> 255 | W20: =IF(I20="","",IF(MAXA(T20:V20)<=0,0,MAXA(T20:V20))) ->  | AA20: =S20-HLOOKUP(#REF!,Feuil1!$C$1:$BL$10,2,FALSE) ->  | AB20: =S20-HLOOKUP(#REF!,Feuil1!$C$1:$BL$10,3,FALSE) ->  | AC20: =S20-HLOOKUP(#REF!,Feuil1!$C$1:$BL$10,4,FALSE) ->  | AD20: =S20-HLOOKUP(#REF!,Feuil1!$C$1:$BL$10,5,FALSE) ->  | AE20: =S20-HLOOKUP(#REF!,Feuil1!$C$1:$BL$10,6,FALSE) ->  | AF20: =S20-HLOOKUP(#REF!,Feuil1!$C$1:$BL$10,7,FALSE) ->  | AG20: =S20-HLOOKUP(#REF!,Feuil1!$C$1:$BL$10,8,FALSE) ->  | AH20: =S20-HLOOKUP(#REF!,Feuil1!$C$1:$BL$10,9,FALSE) ->  | AI20: =S20-HLOOKUP(#REF!,Feuil1!$C$1:$BL$10,10,FALSE) -> 
C21: 2 | D21: F121098240 | E21: MANRY | F21: ADRIEN | G21: PRE CLERMONT STAPS | H21: CLERMONT FD | J21: 83.65 | O21: 98 | P21: -102 | Q21: 102 | R21: 102 | T21: 112.5 | U21: 115 | V21: -120 | W21: =IF(J21="","",IF(MAXA(T21:V21)<=0,0,MAXA(T21:V21))) -> 115 | X21: 217 | AA21: =S21-HLOOKUP(#REF!,Feuil1!$C$1:$BL$10,2,FALSE) ->  | AB21: =S21-HLOOKUP(#REF!,Feuil1!$C$1:$BL$10,3,FALSE) ->  | AC21: =S21-HLOOKUP(#REF!,Feuil1!$C$1:$BL$10,4,FALSE) ->  | AD21: =S21-HLOOKUP(#REF!,Feuil1!$C$1:$BL$10,5,FALSE) ->  | AE21: =S21-HLOOKUP(#REF!,Feuil1!$C$1:$BL$10,6,FALSE) ->  | AF21: =S21-HLOOKUP(#REF!,Feuil1!$C$1:$BL$10,7,FALSE) ->  | AG21: =S21-HLOOKUP(#REF!,Feuil1!$C$1:$BL$10,8,FALSE) ->  | AH21: =S21-HLOOKUP(#REF!,Feuil1!$C$1:$BL$10,9,FALSE) ->  | AI21: =S21-HLOOKUP(#REF!,Feuil1!$C$1:$BL$10,10,FALSE) -> 
A22: 94kg | B22: 4 | C22: 2 | D22: B101094964 | E22: VALLEE | F22: SYLVAIN | G22: Université de Picardie | H22: AMIENS | J22: 92.95 | K22: 85 | L22: 90 | M22: 95 | N22: =IF(J22="","",IF(MAXA(K22:M22)<=0,0,MAXA(K22:M22))) -> 95 | O22: 120 | P22: -125 | Q22: -125 | R22: 120 | S22: =IF(J22="","",IF(OR(N22=0,R22=0),0,N22+R22)) -> 215 | T22: 135 | U22: 142.5 | V22: -150 | W22: =IF(J22="","",IF(MAXA(T22:V22)<=0,0,MAXA(T22:V22))) -> 142.5 | X22: 262.5 | AA22: =S22-HLOOKUP(#REF!,Feuil1!$C$1:$BL$10,2,FALSE) ->  | AB22: =S22-HLOOKUP(#REF!,Feuil1!$C$1:$BL$10,3,FALSE) ->  | AC22: =S22-HLOOKUP(#REF!,Feuil1!$C$1:$BL$10,4,FALSE) ->  | AD22: =S22-HLOOKUP(#REF!,Feuil1!$C$1:$BL$10,5,FALSE) ->  | AE22: =S22-HLOOKUP(#REF!,Feuil1!$C$1:$BL$10,6,FALSE) ->  | AF22: =S22-HLOOKUP(#REF!,Feuil1!$C$1:$BL$10,7,FALSE) ->  | AG22: =S22-HLOOKUP(#REF!,Feuil1!$C$1:$BL$10,8,FALSE) ->  | AH22: =S22-HLOOKUP(#REF!,Feuil1!$C$1:$BL$10,9,FALSE) ->  | AI22: =S22-HLOOKUP(#REF!,Feuil1!$C$1:$BL$10,10,FALSE) -> 
B23: 3 | C23: 5 | D23: B101076665 | E23: RICHARD | F23: ALEXANDRE | G23: Université de Picardie | H23: AMIENS | J23: 86.95 | K23: 93 | L23: -98 | M23: 98 | N23: 98 | O23: 123 | P23: 128 | Q23: -131 | R23: 128 | S23: 226 | T23: 105 | U23: 110 | V23: -117.5 | W23: =IF(J23="","",IF(MAXA(T23:V23)<=0,0,MAXA(T23:V23))) -> 110 | X23: 238 | AA23: =S23-HLOOKUP(#REF!,Feuil1!$C$1:$BL$10,2,FALSE) ->  | AB23: =S23-HLOOKUP(#REF!,Feuil1!$C$1:$BL$10,3,FALSE) ->  | AC23: =S23-HLOOKUP(#REF!,Feuil1!$C$1:$BL$10,4,FALSE) ->  | AD23: =S23-HLOOKUP(#REF!,Feuil1!$C$1:$BL$10,5,FALSE) ->  | AE23: =S23-HLOOKUP(#REF!,Feuil1!$C$1:$BL$10,6,FALSE) ->  | AF23: =S23-HLOOKUP(#REF!,Feuil1!$C$1:$BL$10,7,FALSE) ->  | AG23: =S23-HLOOKUP(#REF!,Feuil1!$C$1:$BL$10,8,FALSE) ->  | AH23: =S23-HLOOKUP(#REF!,Feuil1!$C$1:$BL$10,9,FALSE) ->  | AI23: =S23-HLOOKUP(#REF!,Feuil1!$C$1:$BL$10,10,FALSE) -> 
C24: 3 | D24: NN11093540 | E24: DUCLOS | F24: BENJAMIN | G24: UNIVERSITE MONTPELLIER STAPS | H24: MONTPELLIER | J24: 91.7 | N24: 0 | O24: 100 | P24: 105 | Q24: -110 | R24: 105 | T24: 140 | U24: 147.5 | V24: -152.5 | W24: 147.5 | X24: 252.5 | AA24: =S24-HLOOKUP(#REF!,Feuil1!$C$1:$BL$10,2,FALSE) ->  | AB24: =S24-HLOOKUP(#REF!,Feuil1!$C$1:$BL$10,3,FALSE) ->  | AC24: =S24-HLOOKUP(#REF!,Feuil1!$C$1:$BL$10,4,FALSE) ->  | AD24: =S24-HLOOKUP(#REF!,Feuil1!$C$1:$BL$10,5,FALSE) ->  | AE24: =S24-HLOOKUP(#REF!,Feuil1!$C$1:$BL$10,6,FALSE) ->  | AF24: =S24-HLOOKUP(#REF!,Feuil1!$C$1:$BL$10,7,FALSE) ->  | AG24: =S24-HLOOKUP(#REF!,Feuil1!$C$1:$BL$10,8,FALSE) ->  | AH24: =S24-HLOOKUP(#REF!,Feuil1!$C$1:$BL$10,9,FALSE) ->  | AI24: =S24-HLOOKUP(#REF!,Feuil1!$C$1:$BL$10,10,FALSE) -> 
B25: 1 | D25: H000098721 | E25: BARDIS | F25: JEAN-BAPTISTE | G25: CR Sport U Créteil | H25: CRETEIL | J25: 87.1 | K25: 140 | L25: 145 | M25: 150 | N25: 150 | O25: 160 | R25: 160 | S25: 310 | AA25: =S25-HLOOKUP(#REF!,Feuil1!$C$1:$BL$10,2,FALSE) ->  | AB25: =S25-HLOOKUP(#REF!,Feuil1!$C$1:$BL$10,3,FALSE) ->  | AC25: =S25-HLOOKUP(#REF!,Feuil1!$C$1:$BL$10,4,FALSE) ->  | AD25: =S25-HLOOKUP(#REF!,Feuil1!$C$1:$BL$10,5,FALSE) ->  | AE25: =S25-HLOOKUP(#REF!,Feuil1!$C$1:$BL$10,6,FALSE) ->  | AF25: =S25-HLOOKUP(#REF!,Feuil1!$C$1:$BL$10,7,FALSE) ->  | AG25: =S25-HLOOKUP(#REF!,Feuil1!$C$1:$BL$10,8,FALSE) ->  | AH25: =S25-HLOOKUP(#REF!,Feuil1!$C$1:$BL$10,9,FALSE) ->  | AI25: =S25-HLOOKUP(#REF!,Feuil1!$C$1:$BL$10,10,FALSE) -> 
B26: 2 | C26: 1 | D26: LA0L093160 | E26: GOUDIN | F26: CLEMENT | G26: Faculte des Lettres et S. | H26: LIMOGES | J26: 93.75 | K26: 98 | L26: 104 | M26: -110 | N26: 104 | O26: 125 | P26: 130 | Q26: -140 | R26: 130 | S26: 234 | T26: 150 | U26: 157.5 | V26: 162.5 | W26: 162.5 | X26: 292.5 | AA26: =S26-HLOOKUP(#REF!,Feuil1!$C$1:$BL$10,2,FALSE) ->  | AB26: =S26-HLOOKUP(#REF!,Feuil1!$C$1:$BL$10,3,FALSE) ->  | AC26: =S26-HLOOKUP(#REF!,Feuil1!$C$1:$BL$10,4,FALSE) ->  | AD26: =S26-HLOOKUP(#REF!,Feuil1!$C$1:$BL$10,5,FALSE) ->  | AE26: =S26-HLOOKUP(#REF!,Feuil1!$C$1:$BL$10,6,FALSE) ->  | AF26: =S26-HLOOKUP(#REF!,Feuil1!$C$1:$BL$10,7,FALSE) ->  | AG26: =S26-HLOOKUP(#REF!,Feuil1!$C$1:$BL$10,8,FALSE) ->  | AH26: =S26-HLOOKUP(#REF!,Feuil1!$C$1:$BL$10,9,FALSE) ->  | AI26: =S26-HLOOKUP(#REF!,Feuil1!$C$1:$BL$10,10,FALSE) -> 
C27: 4 | D27: S500080317 | E27: BERDI | F27: MIKAIL | G27: UNIVERSITE PARIS DESCARTES | H27: PARIS | J27: 90.1 | O27: 85 | P27: 90 | Q27: -95 | R27: 90 | T27: 160 | U27: -165 | V27: -165 | W27: 160 | X27: 250 | AA27: =S27-HLOOKUP(#REF!,Feuil1!$C$1:$BL$10,2,FALSE) ->  | AB27: =S27-HLOOKUP(#REF!,Feuil1!$C$1:$BL$10,3,FALSE) ->  | AC27: =S27-HLOOKUP(#REF!,Feuil1!$C$1:$BL$10,4,FALSE) ->  | AD27: =S27-HLOOKUP(#REF!,Feuil1!$C$1:$BL$10,5,FALSE) ->  | AE27: =S27-HLOOKUP(#REF!,Feuil1!$C$1:$BL$10,6,FALSE) ->  | AF27: =S27-HLOOKUP(#REF!,Feuil1!$C$1:$BL$10,7,FALSE) ->  | AG27: =S27-HLOOKUP(#REF!,Feuil1!$C$1:$BL$10,8,FALSE) ->  | AH27: =S27-HLOOKUP(#REF!,Feuil1!$C$1:$BL$10,9,FALSE) ->  | AI27: =S27-HLOOKUP(#REF!,Feuil1!$C$1:$BL$10,10,FALSE) -> 
A28: +94kg | B28: 1 | C28: 1 | D28: B101001206 | E28: DUPONCHEL | F28: ANTOINE | G28: Université de Picardie | H28: AMIENS | J28: 108.65 | K28: 100 | L28: 105 | M28: 110 | N28: 110 | O28: 120 | P28: 127 | Q28: 135 | R28: 135 | S28: 245 | T28: 140 | U28: 150 | V28: 160 | W28: 160 | X28: 295 | AA28: =S28-HLOOKUP(#REF!,Feuil1!$C$1:$BL$10,2,FALSE) ->  | AB28: =S28-HLOOKUP(#REF!,Feuil1!$C$1:$BL$10,3,FALSE) ->  | AC28: =S28-HLOOKUP(#REF!,Feuil1!$C$1:$BL$10,4,FALSE) ->  | AD28: =S28-HLOOKUP(#REF!,Feuil1!$C$1:$BL$10,5,FALSE) ->  | AE28: =S28-HLOOKUP(#REF!,Feuil1!$C$1:$BL$10,6,FALSE) ->  | AF28: =S28-HLOOKUP(#REF!,Feuil1!$C$1:$BL$10,7,FALSE) ->  | AG28: =S28-HLOOKUP(#REF!,Feuil1!$C$1:$BL$10,8,FALSE) ->  | AH28: =S28-HLOOKUP(#REF!,Feuil1!$C$1:$BL$10,9,FALSE) ->  | AI28: =S28-HLOOKUP(#REF!,Feuil1!$C$1:$BL$10,10,FALSE) -> 
C29: 2 | D29: ZE00086131 | E29: EID | F29: PETER | G29: POLE UNIVERSITAIRE L.VINCI | H29: VERSAILLES | J29: 101.5 | O29: 90 | P29: -100 | Q29: -100 | R29: 90 | T29: 160 | U29: -165 | V29: 165 | W29: 165 | X29: 255 | AA29: =S29-HLOOKUP(#REF!,Feuil1!$C$1:$BL$10,2,FALSE) ->  | AB29: =S29-HLOOKUP(#REF!,Feuil1!$C$1:$BL$10,3,FALSE) ->  | AC29: =S29-HLOOKUP(#REF!,Feuil1!$C$1:$BL$10,4,FALSE) ->  | AD29: =S29-HLOOKUP(#REF!,Feuil1!$C$1:$BL$10,5,FALSE) ->  | AE29: =S29-HLOOKUP(#REF!,Feuil1!$C$1:$BL$10,6,FALSE) ->  | AF29: =S29-HLOOKUP(#REF!,Feuil1!$C$1:$BL$10,7,FALSE) ->  | AG29: =S29-HLOOKUP(#REF!,Feuil1!$C$1:$BL$10,8,FALSE) ->  | AH29: =S29-HLOOKUP(#REF!,Feuil1!$C$1:$BL$10,9,FALSE) ->  | AI29: =S29-HLOOKUP(#REF!,Feuil1!$C$1:$BL$10,10,FALSE) -> 
AA525: J77 | AB525: J85 | AC525: J94 | AD525: J105 | AE525: J+105 | AG525: J56 | AH525: J62 | AI525: J69 | AJ525: J77 | AK525: J85 | AL525: J94 | AM525: J105 | AN525: J+105 | AP525: S56 | AQ525: S62 | AR525: S69 | AS525: S77 | AT525: S85 | AU525: S94 | AV525: S105 | AW525: S+105
AA526: 145 | AB526: 160 | AC526: 170 | AD526: 180 | AE526: 190 | AG526: 100 | AH526: 115 | AI526: 130 | AJ526: 145 | AK526: 160 | AL526: 170 | AM526: 180 | AN526: 190 | AP526: 115 | AQ526: 135 | AR526: 150 | AS526: 165 | AT526: 180 | AU526: 190 | AV526: 200 | AW526: 210
AA527: 165 | AB527: 180 | AC527: 190 | AD527: 200 | AE527: 210 | AG527: 115 | AH527: 135 | AI527: 150 | AJ527: 165 | AK527: 180 | AL527: 190 | AM527: 200 | AN527: 210 | AP527: 130 | AQ527: 150 | AR527: 165 | AS527: 185 | AT527: 200 | AU527: 210 | AV527: 220 | AW527: 230
AA528: 185 | AB528: 200 | AC528: 210 | AD528: 220 | AE528: 230 | AG528: 130 | AH528: 150 | AI528: 165 | AJ528: 185 | AK528: 200 | AL528: 210 | AM528: 220 | AN528: 230 | AP528: 145 | AQ528: 165 | AR528: 180 | AS528: 200 | AT528: 220 | AU528: 230 | AV528: 240 | AW528: 250
AA529: 200 | AB529: 220 | AC529: 230 | AD529: 240 | AE529: 250 | AG529: 145 | AH529: 165 | AI529: 180 | AJ529: 200 | AK529: 220 | AL529: 230 | AM529: 240 | AN529: 250 | AP529: 175 | AQ529: 195 | AR529: 215 | AS529: 235 | AT529: 250 | AU529: 260 | AV529: 275 | AW529: 280
AA530: 235 | AB530: 250 | AC530: 260 | AD530: 275 | AE530: 280 | AG530: 175 | AH530: 195 | AI530: 215 | AJ530: 235 | AK530: 250 | AL530: 260 | AM530: 275 | AN530: 280 | AP530: 210 | AQ530: 230 | AR530: 250 | AS530: 270 | AT530: 290 | AU530: 300 | AV530: 310 | AW530: 325
AA531: 270 | AB531: 290 | AC531: 300 | AD531: 310 | AE531: 325 | AG531: 210 | AH531: 230 | AI531: 250 | AJ531: 270 | AK531: 290 | AL531: 300 | AM531: 310 | AN531: 325 | AP531: 230 | AQ531: 255 | AR531: 275 | AS531: 300 | AT531: 315 | AU531: 335 | AV531: 345 | AW531: 355
AA532: 320 | AB532: 335 | AC532: 355 | AD532: 370 | AE532: 380 | AG532: 245 | AH532: 270 | AI532: 295 | AJ532: 320 | AK532: 335 | AL532: 355 | AM532: 370 | AN532: 380 | AP532: 245 | AQ532: 270 | AR532: 295 | AS532: 320 | AT532: 335 | AU532: 355 | AV532: 370 | AW532: 380

Sheet DC EQUIPE
C1: EPREUVE : | D1: DC PAR EQUIPE -CFU 2015 | I1: DATE : | K1: 2015-05-13
C2: LIEU : | F2: CLERMONT L'HERAULT | H2: ZONE : | L2: SUD
B4: SEXE | C4: Class. | D4: NOM | E4: PRENOM | F4: AS | G4: Académie | H4: N° | I4: POIDS DE CORPS | J4: BR | K4: 2 | L4: 3 | M4: 4 | N4: PERF. | O4: POINTS IND. | P4: CATEGORIE | R4: POINTS EQUIPE
A5: EQUIPE 1 | B5: F | C5: 1 | D5: MORO | E5: MARLENE | F5: Université Montpellier STAPS | G5: MONTPELLIER | H5: 1 | I5: 55.2 | K5: 52.5 | L5: 55 | M5: -57.5 | N5: =IF(H5="","",IF(MAXA(J5:M5)<=0,0,MAXA(J5:M5))) -> 55 | O5: =IF(N5="",0,N5-(I5/2)) -> 27.4 | P5: =IF(I5="","",IF(B5="H",IF(OR(H5="SEN",H5<1995),VLOOKUP(I5,[2]Feuil1!$A$11:$G$29,6),IF(AND(H5>1994,H5<1998),VLOOKUP(I5,[2]Feuil1!$A$11:$G$29,5),IF(AND(H5>1997,H5<2000),VLOOKUP(I5,[2]Feuil1!$A$11:$G$29,4),IF(AND(H5>1999,H5<2002),VLOOKUP(I5,[2]Feuil1!$A$11:$G$29,3),VLOOKUP(I5,[2]Feuil1!$A$11:$G$29,2))))),IF(OR(H5="SEN",H5<1995),VLOOKUP(I5,[2]Feuil1!$G$11:$L$25,6),IF(AND(H5>1994,H5<1998),VLOOKUP(I5,[2]Feuil1!$G$11:$L$25,5),IF(AND(H5>1997,H5<2000),VLOOKUP(I5,[2]Feuil1!$G$11:$L$25,4),IF(AND(H5>1999,H5<2002),VLOOKUP(I5,[2]Feuil1!$G$11:$L$25,3),VLOOKUP(I5,[2]Feuil1!$G$11:$L$25,2))))))) -> FS58 | R5: =SUM(O5:O10) -> 253
B6: F | D6: REGNIER | E6: CLAIRE | H6: 2 | I6: 64 | J6: 55 | K6: 60 | L6: 62.5 | M6: 65 | N6: 65 | O6: =IF(N6="",0,N6-(I6/2)) -> 33 | P6: =IF(I6="","",IF(B6="H",IF(OR(H6="SEN",H6<1995),VLOOKUP(I6,[2]Feuil1!$A$11:$G$29,6),IF(AND(H6>1994,H6<1998),VLOOKUP(I6,[2]Feuil1!$A$11:$G$29,5),IF(AND(H6>1997,H6<2000),VLOOKUP(I6,[2]Feuil1!$A$11:$G$29,4),IF(AND(H6>1999,H6<2002),VLOOKUP(I6,[2]Feuil1!$A$11:$G$29,3),VLOOKUP(I6,[2]Feuil1!$A$11:$G$29,2))))),IF(OR(H6="SEN",H6<1995),VLOOKUP(I6,[2]Feuil1!$G$11:$L$25,6),IF(AND(H6>1994,H6<1998),VLOOKUP(I6,[2]Feuil1!$G$11:$L$25,5),IF(AND(H6>1997,H6<2000),VLOOKUP(I6,[2]Feuil1!$G$11:$L$25,4),IF(AND(H6>1999,H6<2002),VLOOKUP(I6,[2]Feuil1!$G$11:$L$25,3),VLOOKUP(I6,[2]Feuil1!$G$11:$L$25,2))))))) -> FS69
B7: H | D7: VILLEBRUN | E7: FLORENT | H7: 3 | I7: 77.6 | J7: 65 | K7: -110 | L7: 110 | M7: -115 | N7: 110 | O7: =IF(N7="",0,N7-(I7/1)) -> 32.4 | P7: =IF(I7="","",IF(B7="H",IF(OR(H7="SEN",H7<1995),VLOOKUP(I7,[2]Feuil1!$A$11:$G$29,6),IF(AND(H7>1994,H7<1998),VLOOKUP(I7,[2]Feuil1!$A$11:$G$29,5),IF(AND(H7>1997,H7<2000),VLOOKUP(I7,[2]Feuil1!$A$11:$G$29,4),IF(AND(H7>1999,H7<2002),VLOOKUP(I7,[2]Feuil1!$A$11:$G$29,3),VLOOKUP(I7,[2]Feuil1!$A$11:$G$29,2))))),IF(OR(H7="SEN",H7<1995),VLOOKUP(I7,[2]Feuil1!$G$11:$L$25,6),IF(AND(H7>1994,H7<1998),VLOOKUP(I7,[2]Feuil1!$G$11:$L$25,5),IF(AND(H7>1997,H7<2000),VLOOKUP(I7,[2]Feuil1!$G$11:$L$25,4),IF(AND(H7>1999,H7<2002),VLOOKUP(I7,[2]Feuil1!$G$11:$L$25,3),VLOOKUP(I7,[2]Feuil1!$G$11:$L$25,2))))))) -> S85
B8: H | D8: CHANTI | E8: NIDAL | H8: 4 | I8: 77.5 | J8: 110 | K8: 120 | L8: 125 | M8: -130 | N8: 125 | O8: =IF(N8="",0,N8-(I8/1)) -> 47.5 | P8: =IF(I8="","",IF(B8="H",IF(OR(H8="SEN",H8<1995),VLOOKUP(I8,[2]Feuil1!$A$11:$G$29,6),IF(AND(H8>1994,H8<1998),VLOOKUP(I8,[2]Feuil1!$A$11:$G$29,5),IF(AND(H8>1997,H8<2000),VLOOKUP(I8,[2]Feuil1!$A$11:$G$29,4),IF(AND(H8>1999,H8<2002),VLOOKUP(I8,[2]Feuil1!$A$11:$G$29,3),VLOOKUP(I8,[2]Feuil1!$A$11:$G$29,2))))),IF(OR(H8="SEN",H8<1995),VLOOKUP(I8,[2]Feuil1!$G$11:$L$25,6),IF(AND(H8>1994,H8<1998),VLOOKUP(I8,[2]Feuil1!$G$11:$L$25,5),IF(AND(H8>1997,H8<2000),VLOOKUP(I8,[2]Feuil1!$G$11:$L$25,4),IF(AND(H8>1999,H8<2002),VLOOKUP(I8,[2]Feuil1!$G$11:$L$25,3),VLOOKUP(I8,[2]Feuil1!$G$11:$L$25,2))))))) -> S85
B9: H | D9: SONETTI | E9: RUDY | H9: 5 | I9: 88.15 | J9: 125 | K9: 135 | L9: 140 | M9: 145 | N9: 145 | O9: =IF(N9="",0,N9-(I9/1)) -> 56.85 | P9: =IF(I9="","",IF(B9="H",IF(OR(H9="SEN",H9<1995),VLOOKUP(I9,[2]Feuil1!$A$11:$G$29,6),IF(AND(H9>1994,H9<1998),VLOOKUP(I9,[2]Feuil1!$A$11:$G$29,5),IF(AND(H9>1997,H9<2000),VLOOKUP(I9,[2]Feuil1!$A$11:$G$29,4),IF(AND(H9>1999,H9<2002),VLOOKUP(I9,[2]Feuil1!$A$11:$G$29,3),VLOOKUP(I9,[2]Feuil1!$A$11:$G$29,2))))),IF(OR(H9="SEN",H9<1995),VLOOKUP(I9,[2]Feuil1!$G$11:$L$25,6),IF(AND(H9>1994,H9<1998),VLOOKUP(I9,[2]Feuil1!$G$11:$L$25,5),IF(AND(H9>1997,H9<2000),VLOOKUP(I9,[2]Feuil1!$G$11:$L$25,4),IF(AND(H9>1999,H9<2002),VLOOKUP(I9,[2]Feuil1!$G$11:$L$25,3),VLOOKUP(I9,[2]Feuil1!$G$11:$L$25,2))))))) -> S94
B10: H | D10: DUCLOS | E10: BENJAMIN | H10: 6 | I10: 91.65 | J10: 145 | K10: 147.5 | L10: -150 | M10: -150 | N10: 147.5 | O10: =IF(N10="",0,N10-(I10/1)) -> 55.85 | P10: =IF(I10="","",IF(B10="H",IF(OR(H10="SEN",H10<1995),VLOOKUP(I10,[2]Feuil1!$A$11:$G$29,6),IF(AND(H10>1994,H10<1998),VLOOKUP(I10,[2]Feuil1!$A$11:$G$29,5),IF(AND(H10>1997,H10<2000),VLOOKUP(I10,[2]Feuil1!$A$11:$G$29,4),IF(AND(H10>1999,H10<2002),VLOOKUP(I10,[2]Feuil1!$A$11:$G$29,3),VLOOKUP(I10,[2]Feuil1!$A$11:$G$29,2))))),IF(OR(H10="SEN",H10<1995),VLOOKUP(I10,[2]Feuil1!$G$11:$L$25,6),IF(AND(H10>1994,H10<1998),VLOOKUP(I10,[2]Feuil1!$G$11:$L$25,5),IF(AND(H10>1997,H10<2000),VLOOKUP(I10,[2]Feuil1!$G$11:$L$25,4),IF(AND(H10>1999,H10<2002),VLOOKUP(I10,[2]Feuil1!$G$11:$L$25,3),VLOOKUP(I10,[2]Feuil1!$G$11:$L$25,2))))))) -> S94
A11: EQUIPE 2 | B11: F | C11: 6 | D11: TRAORE | E11: MADOUSS | F11: UNIVERSITE PARIS 13 | G11: CRETEIL | H11: 1 | I11: 55.9 | K11: 45 | L11: 50 | M11: -55 | N11: =IF(H11="","",IF(MAXA(J11:M11)<=0,0,MAXA(J11:M11))) -> 50 | O11: =IF(N11="",0,N11-(I11/2)) -> 22.05 | P11: =IF(I11="","",IF(B11="H",IF(OR(H11="SEN",H11<1995),VLOOKUP(I11,[2]Feuil1!$A$11:$G$29,6),IF(AND(H11>1994,H11<1998),VLOOKUP(I11,[2]Feuil1!$A$11:$G$29,5),IF(AND(H11>1997,H11<2000),VLOOKUP(I11,[2]Feuil1!$A$11:$G$29,4),IF(AND(H11>1999,H11<2002),VLOOKUP(I11,[2]Feuil1!$A$11:$G$29,3),VLOOKUP(I11,[2]Feuil1!$A$11:$G$29,2))))),IF(OR(H11="SEN",H11<1995),VLOOKUP(I11,[2]Feuil1!$G$11:$L$25,6),IF(AND(H11>1994,H11<1998),VLOOKUP(I11,[2]Feuil1!$G$11:$L$25,5),IF(AND(H11>1997,H11<2000),VLOOKUP(I11,[2]Feuil1!$G$11:$L$25,4),IF(AND(H11>1999,H11<2002),VLOOKUP(I11,[2]Feuil1!$G$11:$L$25,3),VLOOKUP(I11,[2]Feuil1!$G$11:$L$25,2))))))) -> FS58 | R11: =SUM(O11:O16) -> 134
B12: F | D12: N'WEDECK | E12: JEANNETTE | F12: UNIVERSITE PARIS 13 | G12: CRETEIL | H12: 2 | I12: 73.3 | J12: 50 | K12: 55 | L12: -57.5 | M12: -57.5 | N12: 55 | O12: =IF(N12="",0,N12-(I12/2)) -> 18.35 | P12: =IF(I12="","",IF(B12="H",IF(OR(H12="SEN",H12<1995),VLOOKUP(I12,[2]Feuil1!$A$11:$G$29,6),IF(AND(H12>1994,H12<1998),VLOOKUP(I12,[2]Feuil1!$A$11:$G$29,5),IF(AND(H12>1997,H12<2000),VLOOKUP(I12,[2]Feuil1!$A$11:$G$29,4),IF(AND(H12>1999,H12<2002),VLOOKUP(I12,[2]Feuil1!$A$11:$G$29,3),VLOOKUP(I12,[2]Feuil1!$A$11:$G$29,2))))),IF(OR(H12="SEN",H12<1995),VLOOKUP(I12,[2]Feuil1!$G$11:$L$25,6),IF(AND(H12>1994,H12<1998),VLOOKUP(I12,[2]Feuil1!$G$11:$L$25,5),IF(AND(H12>1997,H12<2000),VLOOKUP(I12,[2]Feuil1!$G$11:$L$25,4),IF(AND(H12>1999,H12<2002),VLOOKUP(I12,[2]Feuil1!$G$11:$L$25,3),VLOOKUP(I12,[2]Feuil1!$G$11:$L$25,2))))))) -> FS75
B13: H | D13: ARULENTHY | E13: ETHAN | F13: UNIVERSITE PARIS 13 | G13: CRETEIL | H13: 3 | I13: 65.4 | J13: 55 | K13: -70 | L13: 75 | M13: -77.5 | N13: 75 | O13: =IF(N13="",0,N13-(I13/1)) -> 9.6 | P13: =IF(I13="","",IF(B13="H",IF(OR(H13="SEN",H13<1995),VLOOKUP(I13,[2]Feuil1!$A$11:$G$29,6),IF(AND(H13>1994,H13<1998),VLOOKUP(I13,[2]Feuil1!$A$11:$G$29,5),IF(AND(H13>1997,H13<2000),VLOOKUP(I13,[2]Feuil1!$A$11:$G$29,4),IF(AND(H13>1999,H13<2002),VLOOKUP(I13,[2]Feuil1!$A$11:$G$29,3),VLOOKUP(I13,[2]Feuil1!$A$11:$G$29,2))))),IF(OR(H13="SEN",H13<1995),VLOOKUP(I13,[2]Feuil1!$G$11:$L$25,6),IF(AND(H13>1994,H13<1998),VLOOKUP(I13,[2]Feuil1!$G$11:$L$25,5),IF(AND(H13>1997,H13<2000),VLOOKUP(I13,[2]Feuil1!$G$11:$L$25,4),IF(AND(H13>1999,H13<2002),VLOOKUP(I13,[2]Feuil1!$G$11:$L$25,3),VLOOKUP(I13,[2]Feuil1!$G$11:$L$25,2))))))) -> S69
B14: H | D14: PIES | E14: KEVIN | F14: UNIVERSITE PARIS 13 | G14: CRETEIL | H14: 4 | I14: 82.85 | J14: 75 | K14: 85 | L14: 87.5 | M14: 92.5 | N14: 92.5 | O14: =IF(N14="",0,N14-(I14/1)) -> 9.65 | P14: =IF(I14="","",IF(B14="H",IF(OR(H14="SEN",H14<1995),VLOOKUP(I14,[2]Feuil1!$A$11:$G$29,6),IF(AND(H14>1994,H14<1998),VLOOKUP(I14,[2]Feuil1!$A$11:$G$29,5),IF(AND(H14>1997,H14<2000),VLOOKUP(I14,[2]Feuil1!$A$11:$G$29,4),IF(AND(H14>1999,H14<2002),VLOOKUP(I14,[2]Feuil1!$A$11:$G$29,3),VLOOKUP(I14,[2]Feuil1!$A$11:$G$29,2))))),IF(OR(H14="SEN",H14<1995),VLOOKUP(I14,[2]Feuil1!$G$11:$L$25,6),IF(AND(H14>1994,H14<1998),VLOOKUP(I14,[2]Feuil1!$G$11:$L$25,5),IF(AND(H14>1997,H14<2000),VLOOKUP(I14,[2]Feuil1!$G$11:$L$25,4),IF(AND(H14>1999,H14<2002),VLOOKUP(I14,[2]Feuil1!$G$11:$L$25,3),VLOOKUP(I14,[2]Feuil1!$G$11:$L$25,2))))))) -> S85
B15: H | D15: MAHASSINE | E15: ADBDURAHMAN | F15: UNIVERSITE PARIS 13 | G15: CRETEIL | H15: 5 | I15: 81.2 | J15: 92.5 | K15: 110 | L15: -115 | M15: 115 | N15: 115 | O15: 33.8 | P15: =IF(I15="","",IF(B15="H",IF(OR(H15="SEN",H15<1995),VLOOKUP(I15,[2]Feuil1!$A$11:$G$29,6),IF(AND(H15>1994,H15<1998),VLOOKUP(I15,[2]Feuil1!$A$11:$G$29,5),IF(AND(H15>1997,H15<2000),VLOOKUP(I15,[2]Feuil1!$A$11:$G$29,4),IF(AND(H15>1999,H15<2002),VLOOKUP(I15,[2]Feuil1!$A$11:$G$29,3),VLOOKUP(I15,[2]Feuil1!$A$11:$G$29,2))))),IF(OR(H15="SEN",H15<1995),VLOOKUP(I15,[2]Feuil1!$G$11:$L$25,6),IF(AND(H15>1994,H15<1998),VLOOKUP(I15,[2]Feuil1!$G$11:$L$25,5),IF(AND(H15>1997,H15<2000),VLOOKUP(I15,[2]Feuil1!$G$11:$L$25,4),IF(AND(H15>1999,H15<2002),VLOOKUP(I15,[2]Feuil1!$G$11:$L$25,3),VLOOKUP(I15,[2]Feuil1!$G$11:$L$25,2))))))) -> S85
B16: H | D16: FADIGA | E16: ABDOUL AZIZ | F16: UNIVERSITE PARIS 13 | G16: CRETEIL | H16: 6 | I16: 79.45 | J16: 115 | K16: 120 | L16: -125 | M16: -125 | N16: 120 | O16: 40.55 | P16: =IF(I16="","",IF(B16="H",IF(OR(H16="SEN",H16<1995),VLOOKUP(I16,[2]Feuil1!$A$11:$G$29,6),IF(AND(H16>1994,H16<1998),VLOOKUP(I16,[2]Feuil1!$A$11:$G$29,5),IF(AND(H16>1997,H16<2000),VLOOKUP(I16,[2]Feuil1!$A$11:$G$29,4),IF(AND(H16>1999,H16<2002),VLOOKUP(I16,[2]Feuil1!$A$11:$G$29,3),VLOOKUP(I16,[2]Feuil1!$A$11:$G$29,2))))),IF(OR(H16="SEN",H16<1995),VLOOKUP(I16,[2]Feuil1!$G$11:$L$25,6),IF(AND(H16>1994,H16<1998),VLOOKUP(I16,[2]Feuil1!$G$11:$L$25,5),IF(AND(H16>1997,H16<2000),VLOOKUP(I16,[2]Feuil1!$G$11:$L$25,4),IF(AND(H16>1999,H16<2002),VLOOKUP(I16,[2]Feuil1!$G$11:$L$25,3),VLOOKUP(I16,[2]Feuil1!$G$11:$L$25,2))))))) -> S85
A17: EQUIPE 3 | B17: F | C17: 3 | D17: RIMBERT | E17: VANESSA | F17: Université de Picardie | G17: AMIENS | H17: 1 | I17: 55.4 | K17: 42.5 | L17: -45 | M17: -45 | N17: =IF(H17="","",IF(MAXA(J17:M17)<=0,0,MAXA(J17:M17))) -> 42.5 | O17: =IF(N17="",0,N17-(I17/2)) -> 14.8 | P17: =IF(I17="","",IF(B17="H",IF(OR(H17="SEN",H17<1995),VLOOKUP(I17,[2]Feuil1!$A$11:$G$29,6),IF(AND(H17>1994,H17<1998),VLOOKUP(I17,[2]Feuil1!$A$11:$G$29,5),IF(AND(H17>1997,H17<2000),VLOOKUP(I17,[2]Feuil1!$A$11:$G$29,4),IF(AND(H17>1999,H17<2002),VLOOKUP(I17,[2]Feuil1!$A$11:$G$29,3),VLOOKUP(I17,[2]Feuil1!$A$11:$G$29,2))))),IF(OR(H17="SEN",H17<1995),VLOOKUP(I17,[2]Feuil1!$G$11:$L$25,6),IF(AND(H17>1994,H17<1998),VLOOKUP(I17,[2]Feuil1!$G$11:$L$25,5),IF(AND(H17>1997,H17<2000),VLOOKUP(I17,[2]Feuil1!$G$11:$L$25,4),IF(AND(H17>1999,H17<2002),VLOOKUP(I17,[2]Feuil1!$G$11:$L$25,3),VLOOKUP(I17,[2]Feuil1!$G$11:$L$25,2))))))) -> FS58 | R17: =SUM(O17:O22) -> 238.3
B18: F | D18: JOURNO | E18: DELPHINE | H18: 2 | I18: 59.6 | J18: 42.5 | K18: 50 | L18: -52.5 | M18: -52.5 | N18: 50 | O18: =IF(N18="",0,N18-(I18/2)) -> 20.2 | P18: =IF(I18="","",IF(B18="H",IF(OR(H18="SEN",H18<1995),VLOOKUP(I18,[2]Feuil1!$A$11:$G$29,6),IF(AND(H18>1994,H18<1998),VLOOKUP(I18,[2]Feuil1!$A$11:$G$29,5),IF(AND(H18>1997,H18<2000),VLOOKUP(I18,[2]Feuil1!$A$11:$G$29,4),IF(AND(H18>1999,H18<2002),VLOOKUP(I18,[2]Feuil1!$A$11:$G$29,3),VLOOKUP(I18,[2]Feuil1!$A$11:$G$29,2))))),IF(OR(H18="SEN",H18<1995),VLOOKUP(I18,[2]Feuil1!$G$11:$L$25,6),IF(AND(H18>1994,H18<1998),VLOOKUP(I18,[2]Feuil1!$G$11:$L$25,5),IF(AND(H18>1997,H18<2000),VLOOKUP(I18,[2]Feuil1!$G$11:$L$25,4),IF(AND(H18>1999,H18<2002),VLOOKUP(I18,[2]Feuil1!$G$11:$L$25,3),VLOOKUP(I18,[2]Feuil1!$G$11:$L$25,2))))))) -> FS63
B19: H | D19: OBEL | E19: ALEXANDRE | H19: 3 | I19: 69 | J19: 50 | K19: 110 | L19: 115 | M19: 120 | N19: =IF(H19="","",IF(MAXA(J19:M19)<=0,0,MAXA(J19:M19))) -> 120 | O19: =IF(N19="",0,N19-(I19/1)) -> 51 | P19: =IF(I19="","",IF(B19="H",IF(OR(H19="SEN",H19<1995),VLOOKUP(I19,[2]Feuil1!$A$11:$G$29,6),IF(AND(H19>1994,H19<1998),VLOOKUP(I19,[2]Feuil1!$A$11:$G$29,5),IF(AND(H19>1997,H19<2000),VLOOKUP(I19,[2]Feuil1!$A$11:$G$29,4),IF(AND(H19>1999,H19<2002),VLOOKUP(I19,[2]Feuil1!$A$11:$G$29,3),VLOOKUP(I19,[2]Feuil1!$A$11:$G$29,2))))),IF(OR(H19="SEN",H19<1995),VLOOKUP(I19,[2]Feuil1!$G$11:$L$25,6),IF(AND(H19>1994,H19<1998),VLOOKUP(I19,[2]Feuil1!$G$11:$L$25,5),IF(AND(H19>1997,H19<2000),VLOOKUP(I19,[2]Feuil1!$G$11:$L$25,4),IF(AND(H19>1999,H19<2002),VLOOKUP(I19,[2]Feuil1!$G$11:$L$25,3),VLOOKUP(I19,[2]Feuil1!$G$11:$L$25,2))))))) -> S69
B20: H | D20: ZIG | E20: WESLEY | H20: 4 | I20: 77.7 | J20: 120 | K20: 125 | L20: 127.5 | M20: -130 | N20: =IF(H20="","",IF(MAXA(J20:M20)<=0,0,MAXA(J20:M20))) -> 127.5 | O20: 49.8 | P20: =IF(I20="","",IF(B20="H",IF(OR(H20="SEN",H20<1995),VLOOKUP(I20,[2]Feuil1!$A$11:$G$29,6),IF(AND(H20>1994,H20<1998),VLOOKUP(I20,[2]Feuil1!$A$11:$G$29,5),IF(AND(H20>1997,H20<2000),VLOOKUP(I20,[2]Feuil1!$A$11:$G$29,4),IF(AND(H20>1999,H20<2002),VLOOKUP(I20,[2]Feuil1!$A$11:$G$29,3),VLOOKUP(I20,[2]Feuil1!$A$11:$G$29,2))))),IF(OR(H20="SEN",H20<1995),VLOOKUP(I20,[2]Feuil1!$G$11:$L$25,6),IF(AND(H20>1994,H20<1998),VLOOKUP(I20,[2]Feuil1!$G$11:$L$25,5),IF(AND(H20>1997,H20<2000),VLOOKUP(I20,[2]Feuil1!$G$11:$L$25,4),IF(AND(H20>1999,H20<2002),VLOOKUP(I20,[2]Feuil1!$G$11:$L$25,3),VLOOKUP(I20,[2]Feuil1!$G$11:$L$25,2))))))) -> S85
B21: H | D21: VALLEE | E21: SYLVAIN | H21: 5 | I21: 94.75 | J21: 127.5 | K21: 135 | L21: 140 | M21: 145 | N21: =IF(H21="","",IF(MAXA(J21:M21)<=0,0,MAXA(J21:M21))) -> 145 | O21: 50.25 | P21: =IF(I21="","",IF(B21="H",IF(OR(H21="SEN",H21<1995),VLOOKUP(I21,[2]Feuil1!$A$11:$G$29,6),IF(AND(H21>1994,H21<1998),VLOOKUP(I21,[2]Feuil1!$A$11:$G$29,5),IF(AND(H21>1997,H21<2000),VLOOKUP(I21,[2]Feuil1!$A$11:$G$29,4),IF(AND(H21>1999,H21<2002),VLOOKUP(I21,[2]Feuil1!$A$11:$G$29,3),VLOOKUP(I21,[2]Feuil1!$A$11:$G$29,2))))),IF(OR(H21="SEN",H21<1995),VLOOKUP(I21,[2]Feuil1!$G$11:$L$25,6),IF(AND(H21>1994,H21<1998),VLOOKUP(I21,[2]Feuil1!$G$11:$L$25,5),IF(AND(H21>1997,H21<2000),VLOOKUP(I21,[2]Feuil1!$G$11:$L$25,4),IF(AND(H21>1999,H21<2002),VLOOKUP(I21,[2]Feuil1!$G$11:$L$25,3),VLOOKUP(I21,[2]Feuil1!$G$11:$L$25,2))))))) -> S105
B22: H | D22: DUPONCHEL | E22: Antoine | H22: 6 | I22: 107.75 | J22: 145 | K22: 160 | L22: -165 | M22: -165 | N22: =IF(H22="","",IF(MAXA(J22:M22)<=0,0,MAXA(J22:M22))) -> 160 | O22: 52.25 | P22: =IF(I22="","",IF(B22="H",IF(OR(H22="SEN",H22<1995),VLOOKUP(I22,[2]Feuil1!$A$11:$G$29,6),IF(AND(H22>1994,H22<1998),VLOOKUP(I22,[2]Feuil1!$A$11:$G$29,5),IF(AND(H22>1997,H22<2000),VLOOKUP(I22,[2]Feuil1!$A$11:$G$29,4),IF(AND(H22>1999,H22<2002),VLOOKUP(I22,[2]Feuil1!$A$11:$G$29,3),VLOOKUP(I22,[2]Feuil1!$A$11:$G$29,2))))),IF(OR(H22="SEN",H22<1995),VLOOKUP(I22,[2]Feuil1!$G$11:$L$25,6),IF(AND(H22>1994,H22<1998),VLOOKUP(I22,[2]Feuil1!$G$11:$L$25,5),IF(AND(H22>1997,H22<2000),VLOOKUP(I22,[2]Feuil1!$G$11:$L$25,4),IF(AND(H22>1999,H22<2002),VLOOKUP(I22,[2]Feuil1!$G$11:$L$25,3),VLOOKUP(I22,[2]Feuil1!$G$11:$L$25,2))))))) -> S+105
A23: EQUIPE 4 | B23: H | D23: CHANTI | E23: NIDAL | F23: POLE UNIVERSITAIRE L.VINCI | G23: VERSAILLES | H23: 4 | I23: 77.5 | J23: *120 | N23: =IF(H23="","",IF(MAXA(J23:M23)<=0,0,MAXA(J23:M23))) -> 0 | O23: -77.5 | P23: =IF(I23="","",IF(B23="H",IF(OR(H23="SEN",H23<1995),VLOOKUP(I23,[2]Feuil1!$A$11:$G$29,6),IF(AND(H23>1994,H23<1998),VLOOKUP(I23,[2]Feuil1!$A$11:$G$29,5),IF(AND(H23>1997,H23<2000),VLOOKUP(I23,[2]Feuil1!$A$11:$G$29,4),IF(AND(H23>1999,H23<2002),VLOOKUP(I23,[2]Feuil1!$A$11:$G$29,3),VLOOKUP(I23,[2]Feuil1!$A$11:$G$29,2))))),IF(OR(H23="SEN",H23<1995),VLOOKUP(I23,[2]Feuil1!$G$11:$L$25,6),IF(AND(H23>1994,H23<1998),VLOOKUP(I23,[2]Feuil1!$G$11:$L$25,5),IF(AND(H23>1997,H23<2000),VLOOKUP(I23,[2]Feuil1!$G$11:$L$25,4),IF(AND(H23>1999,H23<2002),VLOOKUP(I23,[2]Feuil1!$G$11:$L$25,3),VLOOKUP(I23,[2]Feuil1!$G$11:$L$25,2))))))) -> S85 | R23: =SUM(O23:O28) -> -387.3
B24: H | D24: SONETTI | E24: RUDY | H24: 5 | I24: 88.15 | J24: *127,5 | N24: 0 | O24: -88.15 | P24: =IF(I24="","",IF(B24="H",IF(OR(H24="SEN",H24<1995),VLOOKUP(I24,[2]Feuil1!$A$11:$G$29,6),IF(AND(H24>1994,H24<1998),VLOOKUP(I24,[2]Feuil1!$A$11:$G$29,5),IF(AND(H24>1997,H24<2000),VLOOKUP(I24,[2]Feuil1!$A$11:$G$29,4),IF(AND(H24>1999,H24<2002),VLOOKUP(I24,[2]Feuil1!$A$11:$G$29,3),VLOOKUP(I24,[2]Feuil1!$A$11:$G$29,2))))),IF(OR(H24="SEN",H24<1995),VLOOKUP(I24,[2]Feuil1!$G$11:$L$25,6),IF(AND(H24>1994,H24<1998),VLOOKUP(I24,[2]Feuil1!$G$11:$L$25,5),IF(AND(H24>1997,H24<2000),VLOOKUP(I24,[2]Feuil1!$G$11:$L$25,4),IF(AND(H24>1999,H24<2002),VLOOKUP(I24,[2]Feuil1!$G$11:$L$25,3),VLOOKUP(I24,[2]Feuil1!$G$11:$L$25,2))))))) -> S94
B25: H | D25: DUCLOS | E25: BENJAMIN | H25: 6 | I25: 91.65 | J25: *145 | N25: 0 | O25: -91.65 | P25: =IF(I25="","",IF(B25="H",IF(OR(H25="SEN",H25<1995),VLOOKUP(I25,[2]Feuil1!$A$11:$G$29,6),IF(AND(H25>1994,H25<1998),VLOOKUP(I25,[2]Feuil1!$A$11:$G$29,5),IF(AND(H25>1997,H25<2000),VLOOKUP(I25,[2]Feuil1!$A$11:$G$29,4),IF(AND(H25>1999,H25<2002),VLOOKUP(I25,[2]Feuil1!$A$11:$G$29,3),VLOOKUP(I25,[2]Feuil1!$A$11:$G$29,2))))),IF(OR(H25="SEN",H25<1995),VLOOKUP(I25,[2]Feuil1!$G$11:$L$25,6),IF(AND(H25>1994,H25<1998),VLOOKUP(I25,[2]Feuil1!$G$11:$L$25,5),IF(AND(H25>1997,H25<2000),VLOOKUP(I25,[2]Feuil1!$G$11:$L$25,4),IF(AND(H25>1999,H25<2002),VLOOKUP(I25,[2]Feuil1!$G$11:$L$25,3),VLOOKUP(I25,[2]Feuil1!$G$11:$L$25,2))))))) -> S94
A26: EQUIPE 2 | B26: F | D26: TRAORE | E26: MADOUSS | F26: UNIVERSITE PARIS 13 | G26: CRETEIL | H26: 1 | I26: 55.9 | K26: *45 | N26: 0 | O26: =IF(N26="",0,N26-(I26/2)) -> -27.95 | P26: =IF(I26="","",IF(B26="H",IF(OR(H26="SEN",H26<1995),VLOOKUP(I26,[2]Feuil1!$A$11:$G$29,6),IF(AND(H26>1994,H26<1998),VLOOKUP(I26,[2]Feuil1!$A$11:$G$29,5),IF(AND(H26>1997,H26<2000),VLOOKUP(I26,[2]Feuil1!$A$11:$G$29,4),IF(AND(H26>1999,H26<2002),VLOOKUP(I26,[2]Feuil1!$A$11:$G$29,3),VLOOKUP(I26,[2]Feuil1!$A$11:$G$29,2))))),IF(OR(H26="SEN",H26<1995),VLOOKUP(I26,[2]Feuil1!$G$11:$L$25,6),IF(AND(H26>1994,H26<1998),VLOOKUP(I26,[2]Feuil1!$G$11:$L$25,5),IF(AND(H26>1997,H26<2000),VLOOKUP(I26,[2]Feuil1!$G$11:$L$25,4),IF(AND(H26>1999,H26<2002),VLOOKUP(I26,[2]Feuil1!$G$11:$L$25,3),VLOOKUP(I26,[2]Feuil1!$G$11:$L$25,2))))))) -> FS58 | R26: =SUM(O26:O31) -> -373.5
B27: F | D27: DECIMUS | E27: ALMANESE | F27: UNIVERSITE PARIS 13 | G27: CRETEIL | H27: 2 | I27: 73.3 | J27: *55 | N27: 0 | O27: =IF(N27="",0,N27-(I27/2)) -> -36.65 | P27: =IF(I27="","",IF(B27="H",IF(OR(H27="SEN",H27<1995),VLOOKUP(I27,[2]Feuil1!$A$11:$G$29,6),IF(AND(H27>1994,H27<1998),VLOOKUP(I27,[2]Feuil1!$A$11:$G$29,5),IF(AND(H27>1997,H27<2000),VLOOKUP(I27,[2]Feuil1!$A$11:$G$29,4),IF(AND(H27>1999,H27<2002),VLOOKUP(I27,[2]Feuil1!$A$11:$G$29,3),VLOOKUP(I27,[2]Feuil1!$A$11:$G$29,2))))),IF(OR(H27="SEN",H27<1995),VLOOKUP(I27,[2]Feuil1!$G$11:$L$25,6),IF(AND(H27>1994,H27<1998),VLOOKUP(I27,[2]Feuil1!$G$11:$L$25,5),IF(AND(H27>1997,H27<2000),VLOOKUP(I27,[2]Feuil1!$G$11:$L$25,4),IF(AND(H27>1999,H27<2002),VLOOKUP(I27,[2]Feuil1!$G$11:$L$25,3),VLOOKUP(I27,[2]Feuil1!$G$11:$L$25,2))))))) -> FS75
B28: H | D28: ARULENTHY | E28: ETHAN | F28: UNIVERSITE PARIS 13 | G28: CRETEIL | H28: 3 | I28: 65.4 | J28: *75 | N28: 0 | O28: =IF(N28="",0,N28-(I28/1)) -> -65.4 | P28: =IF(I28="","",IF(B28="H",IF(OR(H28="SEN",H28<1995),VLOOKUP(I28,[2]Feuil1!$A$11:$G$29,6),IF(AND(H28>1994,H28<1998),VLOOKUP(I28,[2]Feuil1!$A$11:$G$29,5),IF(AND(H28>1997,H28<2000),VLOOKUP(I28,[2]Feuil1!$A$11:$G$29,4),IF(AND(H28>1999,H28<2002),VLOOKUP(I28,[2]Feuil1!$A$11:$G$29,3),VLOOKUP(I28,[2]Feuil1!$A$11:$G$29,2))))),IF(OR(H28="SEN",H28<1995),VLOOKUP(I28,[2]Feuil1!$G$11:$L$25,6),IF(AND(H28>1994,H28<1998),VLOOKUP(I28,[2]Feuil1!$G$11:$L$25,5),IF(AND(H28>1997,H28<2000),VLOOKUP(I28,[2]Feuil1!$G$11:$L$25,4),IF(AND(H28>1999,H28<2002),VLOOKUP(I28,[2]Feuil1!$G$11:$L$25,3),VLOOKUP(I28,[2]Feuil1!$G$11:$L$25,2))))))) -> S69
B29: H | D29: PIES | E29: KEVIN | F29: UNIVERSITE PARIS 13 | G29: CRETEIL | H29: 4 | I29: 82.85 | J29: *85 | N29: 0 | O29: =IF(N29="",0,N29-(I29/1)) -> -82.85 | P29: =IF(I29="","",IF(B29="H",IF(OR(H29="SEN",H29<1995),VLOOKUP(I29,[2]Feuil1!$A$11:$G$29,6),IF(AND(H29>1994,H29<1998),VLOOKUP(I29,[2]Feuil1!$A$11:$G$29,5),IF(AND(H29>1997,H29<2000),VLOOKUP(I29,[2]Feuil1!$A$11:$G$29,4),IF(AND(H29>1999,H29<2002),VLOOKUP(I29,[2]Feuil1!$A$11:$G$29,3),VLOOKUP(I29,[2]Feuil1!$A$11:$G$29,2))))),IF(OR(H29="SEN",H29<1995),VLOOKUP(I29,[2]Feuil1!$G$11:$L$25,6),IF(AND(H29>1994,H29<1998),VLOOKUP(I29,[2]Feuil1!$G$11:$L$25,5),IF(AND(H29>1997,H29<2000),VLOOKUP(I29,[2]Feuil1!$G$11:$L$25,4),IF(AND(H29>1999,H29<2002),VLOOKUP(I29,[2]Feuil1!$G$11:$L$25,3),VLOOKUP(I29,[2]Feuil1!$G$11:$L$25,2))))))) -> S85
B30: H | D30: MAHASSINE | E30: ADBDURAHMAN | F30: UNIVERSITE PARIS 13 | G30: CRETEIL | H30: 5 | I30: 81.2 | J30: *110 | N30: 0 | O30: -81.2 | P30: =IF(I30="","",IF(B30="H",IF(OR(H30="SEN",H30<1995),VLOOKUP(I30,[2]Feuil1!$A$11:$G$29,6),IF(AND(H30>1994,H30<1998),VLOOKUP(I30,[2]Feuil1!$A$11:$G$29,5),IF(AND(H30>1997,H30<2000),VLOOKUP(I30,[2]Feuil1!$A$11:$G$29,4),IF(AND(H30>1999,H30<2002),VLOOKUP(I30,[2]Feuil1!$A$11:$G$29,3),VLOOKUP(I30,[2]Feuil1!$A$11:$G$29,2))))),IF(OR(H30="SEN",H30<1995),VLOOKUP(I30,[2]Feuil1!$G$11:$L$25,6),IF(AND(H30>1994,H30<1998),VLOOKUP(I30,[2]Feuil1!$G$11:$L$25,5),IF(AND(H30>1997,H30<2000),VLOOKUP(I30,[2]Feuil1!$G$11:$L$25,4),IF(AND(H30>1999,H30<2002),VLOOKUP(I30,[2]Feuil1!$G$11:$L$25,3),VLOOKUP(I30,[2]Feuil1!$G$11:$L$25,2))))))) -> S85
B31: H | D31: FADIGA | E31: ABDOUL AZIZ | F31: UNIVERSITE PARIS 13 | G31: CRETEIL | H31: 6 | I31: 79.45 | J31: *115 | N31: 0 | O31: -79.45 | P31: =IF(I31="","",IF(B31="H",IF(OR(H31="SEN",H31<1995),VLOOKUP(I31,[2]Feuil1!$A$11:$G$29,6),IF(AND(H31>1994,H31<1998),VLOOKUP(I31,[2]Feuil1!$A$11:$G$29,5),IF(AND(H31>1997,H31<2000),VLOOKUP(I31,[2]Feuil1!$A$11:$G$29,4),IF(AND(H31>1999,H31<2002),VLOOKUP(I31,[2]Feuil1!$A$11:$G$29,3),VLOOKUP(I31,[2]Feuil1!$A$11:$G$29,2))))),IF(OR(H31="SEN",H31<1995),VLOOKUP(I31,[2]Feuil1!$G$11:$L$25,6),IF(AND(H31>1994,H31<1998),VLOOKUP(I31,[2]Feuil1!$G$11:$L$25,5),IF(AND(H31>1997,H31<2000),VLOOKUP(I31,[2]Feuil1!$G$11:$L$25,4),IF(AND(H31>1999,H31<2002),VLOOKUP(I31,[2]Feuil1!$G$11:$L$25,3),VLOOKUP(I31,[2]Feuil1!$G$11:$L$25,2))))))) -> S85
A32: EQUIPE 3 | B32: F | D32: RIMBERT | E32: VANESSA | F32: Université de Picardie | G32: AMIENS | H32: 1 | I32: 55.4 | K32: *42,5 | N32: 0 | O32: =IF(N32="",0,N32-(I32/2)) -> -27.7 | P32: =IF(I32="","",IF(B32="H",IF(OR(H32="SEN",H32<1995),VLOOKUP(I32,[2]Feuil1!$A$11:$G$29,6),IF(AND(H32>1994,H32<1998),VLOOKUP(I32,[2]Feuil1!$A$11:$G$29,5),IF(AND(H32>1997,H32<2000),VLOOKUP(I32,[2]Feuil1!$A$11:$G$29,4),IF(AND(H32>1999,H32<2002),VLOOKUP(I32,[2]Feuil1!$A$11:$G$29,3),VLOOKUP(I32,[2]Feuil1!$A$11:$G$29,2))))),IF(OR(H32="SEN",H32<1995),VLOOKUP(I32,[2]Feuil1!$G$11:$L$25,6),IF(AND(H32>1994,H32<1998),VLOOKUP(I32,[2]Feuil1!$G$11:$L$25,5),IF(AND(H32>1997,H32<2000),VLOOKUP(I32,[2]Feuil1!$G$11:$L$25,4),IF(AND(H32>1999,H32<2002),VLOOKUP(I32,[2]Feuil1!$G$11:$L$25,3),VLOOKUP(I32,[2]Feuil1!$G$11:$L$25,2))))))) -> FS58 | R32: =SUM(O32:O37) -> -406.7
B33: F | D33: JOURNO | E33: DELPHINE | H33: 2 | I33: 59.6 | J33: *50 | N33: 0 | O33: =IF(N33="",0,N33-(I33/2)) -> -29.8 | P33: =IF(I33="","",IF(B33="H",IF(OR(H33="SEN",H33<1995),VLOOKUP(I33,[2]Feuil1!$A$11:$G$29,6),IF(AND(H33>1994,H33<1998),VLOOKUP(I33,[2]Feuil1!$A$11:$G$29,5),IF(AND(H33>1997,H33<2000),VLOOKUP(I33,[2]Feuil1!$A$11:$G$29,4),IF(AND(H33>1999,H33<2002),VLOOKUP(I33,[2]Feuil1!$A$11:$G$29,3),VLOOKUP(I33,[2]Feuil1!$A$11:$G$29,2))))),IF(OR(H33="SEN",H33<1995),VLOOKUP(I33,[2]Feuil1!$G$11:$L$25,6),IF(AND(H33>1994,H33<1998),VLOOKUP(I33,[2]Feuil1!$G$11:$L$25,5),IF(AND(H33>1997,H33<2000),VLOOKUP(I33,[2]Feuil1!$G$11:$L$25,4),IF(AND(H33>1999,H33<2002),VLOOKUP(I33,[2]Feuil1!$G$11:$L$25,3),VLOOKUP(I33,[2]Feuil1!$G$11:$L$25,2))))))) -> FS63
B34: H | D34: OBEL | E34: ALEXANDRE | H34: 3 | I34: 69 | J34: *110 | N34: =IF(H34="","",IF(MAXA(J34:M34)<=0,0,MAXA(J34:M34))) -> 0 | O34: =IF(N34="",0,N34-(I34/1)) -> -69 | P34: =IF(I34="","",IF(B34="H",IF(OR(H34="SEN",H34<1995),VLOOKUP(I34,[2]Feuil1!$A$11:$G$29,6),IF(AND(H34>1994,H34<1998),VLOOKUP(I34,[2]Feuil1!$A$11:$G$29,5),IF(AND(H34>1997,H34<2000),VLOOKUP(I34,[2]Feuil1!$A$11:$G$29,4),IF(AND(H34>1999,H34<2002),VLOOKUP(I34,[2]Feuil1!$A$11:$G$29,3),VLOOKUP(I34,[2]Feuil1!$A$11:$G$29,2))))),IF(OR(H34="SEN",H34<1995),VLOOKUP(I34,[2]Feuil1!$G$11:$L$25,6),IF(AND(H34>1994,H34<1998),VLOOKUP(I34,[2]Feuil1!$G$11:$L$25,5),IF(AND(H34>1997,H34<2000),VLOOKUP(I34,[2]Feuil1!$G$11:$L$25,4),IF(AND(H34>1999,H34<2002),VLOOKUP(I34,[2]Feuil1!$G$11:$L$25,3),VLOOKUP(I34,[2]Feuil1!$G$11:$L$25,2))))))) -> S69
B35: H | D35: ZIG | E35: WESLEY | H35: 4 | I35: 77.7 | J35: *115 | N35: =IF(H35="","",IF(MAXA(J35:M35)<=0,0,MAXA(J35:M35))) -> 0 | O35: =IF(N35="",0,N35-(I35/1)) -> -77.7 | P35: =IF(I35="","",IF(B35="H",IF(OR(H35="SEN",H35<1995),VLOOKUP(I35,[2]Feuil1!$A$11:$G$29,6),IF(AND(H35>1994,H35<1998),VLOOKUP(I35,[2]Feuil1!$A$11:$G$29,5),IF(AND(H35>1997,H35<2000),VLOOKUP(I35,[2]Feuil1!$A$11:$G$29,4),IF(AND(H35>1999,H35<2002),VLOOKUP(I35,[2]Feuil1!$A$11:$G$29,3),VLOOKUP(I35,[2]Feuil1!$A$11:$G$29,2))))),IF(OR(H35="SEN",H35<1995),VLOOKUP(I35,[2]Feuil1!$G$11:$L$25,6),IF(AND(H35>1994,H35<1998),VLOOKUP(I35,[2]Feuil1!$G$11:$L$25,5),IF(AND(H35>1997,H35<2000),VLOOKUP(I35,[2]Feuil1!$G$11:$L$25,4),IF(AND(H35>1999,H35<2002),VLOOKUP(I35,[2]Feuil1!$G$11:$L$25,3),VLOOKUP(I35,[2]Feuil1!$G$11:$L$25,2))))))) -> S85
B36: H | D36: VALLEE | E36: SYLVAIN | H36: 5 | I36: 94.75 | J36: *135 | N36: =IF(H36="","",IF(MAXA(J36:M36)<=0,0,MAXA(J36:M36))) -> 0 | O36: =IF(N36="",0,N36-(I36/1)) -> -94.75 | P36: =IF(I36="","",IF(B36="H",IF(OR(H36="SEN",H36<1995),VLOOKUP(I36,[2]Feuil1!$A$11:$G$29,6),IF(AND(H36>1994,H36<1998),VLOOKUP(I36,[2]Feuil1!$A$11:$G$29,5),IF(AND(H36>1997,H36<2000),VLOOKUP(I36,[2]Feuil1!$A$11:$G$29,4),IF(AND(H36>1999,H36<2002),VLOOKUP(I36,[2]Feuil1!$A$11:$G$29,3),VLOOKUP(I36,[2]Feuil1!$A$11:$G$29,2))))),IF(OR(H36="SEN",H36<1995),VLOOKUP(I36,[2]Feuil1!$G$11:$L$25,6),IF(AND(H36>1994,H36<1998),VLOOKUP(I36,[2]Feuil1!$G$11:$L$25,5),IF(AND(H36>1997,H36<2000),VLOOKUP(I36,[2]Feuil1!$G$11:$L$25,4),IF(AND(H36>1999,H36<2002),VLOOKUP(I36,[2]Feuil1!$G$11:$L$25,3),VLOOKUP(I36,[2]Feuil1!$G$11:$L$25,2))))))) -> S105
B37: H | D37: DUPONCHEL | E37: Antoine | H37: 6 | I37: 107.75 | J37: *140 | N37: =IF(H37="","",IF(MAXA(J37:M37)<=0,0,MAXA(J37:M37))) -> 0 | O37: =IF(N37="",0,N37-(I37/1)) -> -107.75 | P37: =IF(I37="","",IF(B37="H",IF(OR(H37="SEN",H37<1995),VLOOKUP(I37,[2]Feuil1!$A$11:$G$29,6),IF(AND(H37>1994,H37<1998),VLOOKUP(I37,[2]Feuil1!$A$11:$G$29,5),IF(AND(H37>1997,H37<2000),VLOOKUP(I37,[2]Feuil1!$A$11:$G$29,4),IF(AND(H37>1999,H37<2002),VLOOKUP(I37,[2]Feuil1!$A$11:$G$29,3),VLOOKUP(I37,[2]Feuil1!$A$11:$G$29,2))))),IF(OR(H37="SEN",H37<1995),VLOOKUP(I37,[2]Feuil1!$G$11:$L$25,6),IF(AND(H37>1994,H37<1998),VLOOKUP(I37,[2]Feuil1!$G$11:$L$25,5),IF(AND(H37>1997,H37<2000),VLOOKUP(I37,[2]Feuil1!$G$11:$L$25,4),IF(AND(H37>1999,H37<2002),VLOOKUP(I37,[2]Feuil1!$G$11:$L$25,3),VLOOKUP(I37,[2]Feuil1!$G$11:$L$25,2))))))) -> S+105
A38: EQUIPE 4 | B38: F | C38: 2 | D38: APPERT | E38: MARIE | F38: POLE UNIVERSITAIRE L.VINCI | G38: VERSAILLES | H38: 1 | I38: 61.9 | K38: 37.5 | L38: -40 | M38: 40 | N38: =IF(H38="","",IF(MAXA(J38:M38)<=0,0,MAXA(J38:M38))) -> 40 | O38: =IF(N38="",0,N38-(I38/2)) -> 9.05 | P38: =IF(I38="","",IF(B38="H",IF(OR(H38="SEN",H38<1995),VLOOKUP(I38,[2]Feuil1!$A$11:$G$29,6),IF(AND(H38>1994,H38<1998),VLOOKUP(I38,[2]Feuil1!$A$11:$G$29,5),IF(AND(H38>1997,H38<2000),VLOOKUP(I38,[2]Feuil1!$A$11:$G$29,4),IF(AND(H38>1999,H38<2002),VLOOKUP(I38,[2]Feuil1!$A$11:$G$29,3),VLOOKUP(I38,[2]Feuil1!$A$11:$G$29,2))))),IF(OR(H38="SEN",H38<1995),VLOOKUP(I38,[2]Feuil1!$G$11:$L$25,6),IF(AND(H38>1994,H38<1998),VLOOKUP(I38,[2]Feuil1!$G$11:$L$25,5),IF(AND(H38>1997,H38<2000),VLOOKUP(I38,[2]Feuil1!$G$11:$L$25,4),IF(AND(H38>1999,H38<2002),VLOOKUP(I38,[2]Feuil1!$G$11:$L$25,3),VLOOKUP(I38,[2]Feuil1!$G$11:$L$25,2))))))) -> FS63 | R38: =SUM(O38:O43) -> 240.3
B39: F | D39: DENZY | E39: SAMBA | H39: 2 | I39: 63.2 | J39: 40 | K39: 42.5 | L39: -45 | M39: -45 | N39: 42.5 | O39: =IF(N39="",0,N39-(I39/2)) -> 10.9 | P39: =IF(I39="","",IF(B39="H",IF(OR(H39="SEN",H39<1995),VLOOKUP(I39,[2]Feuil1!$A$11:$G$29,6),IF(AND(H39>1994,H39<1998),VLOOKUP(I39,[2]Feuil1!$A$11:$G$29,5),IF(AND(H39>1997,H39<2000),VLOOKUP(I39,[2]Feuil1!$A$11:$G$29,4),IF(AND(H39>1999,H39<2002),VLOOKUP(I39,[2]Feuil1!$A$11:$G$29,3),VLOOKUP(I39,[2]Feuil1!$A$11:$G$29,2))))),IF(OR(H39="SEN",H39<1995),VLOOKUP(I39,[2]Feuil1!$G$11:$L$25,6),IF(AND(H39>1994,H39<1998),VLOOKUP(I39,[2]Feuil1!$G$11:$L$25,5),IF(AND(H39>1997,H39<2000),VLOOKUP(I39,[2]Feuil1!$G$11:$L$25,4),IF(AND(H39>1999,H39<2002),VLOOKUP(I39,[2]Feuil1!$G$11:$L$25,3),VLOOKUP(I39,[2]Feuil1!$G$11:$L$25,2))))))) -> FS69
B40: H | D40: KORICHE | E40: ADIB | H40: 3 | I40: 67.95 | J40: 42.5 | K40: 110 | L40: 112.5 | M40: -115 | N40: =IF(H40="","",IF(MAXA(J40:M40)<=0,0,MAXA(J40:M40))) -> 112.5 | O40: =IF(N40="",0,N40-(I40/1)) -> 44.55 | P40: =IF(I40="","",IF(B40="H",IF(OR(H40="SEN",H40<1995),VLOOKUP(I40,[2]Feuil1!$A$11:$G$29,6),IF(AND(H40>1994,H40<1998),VLOOKUP(I40,[2]Feuil1!$A$11:$G$29,5),IF(AND(H40>1997,H40<2000),VLOOKUP(I40,[2]Feuil1!$A$11:$G$29,4),IF(AND(H40>1999,H40<2002),VLOOKUP(I40,[2]Feuil1!$A$11:$G$29,3),VLOOKUP(I40,[2]Feuil1!$A$11:$G$29,2))))),IF(OR(H40="SEN",H40<1995),VLOOKUP(I40,[2]Feuil1!$G$11:$L$25,6),IF(AND(H40>1994,H40<1998),VLOOKUP(I40,[2]Feuil1!$G$11:$L$25,5),IF(AND(H40>1997,H40<2000),VLOOKUP(I40,[2]Feuil1!$G$11:$L$25,4),IF(AND(H40>1999,H40<2002),VLOOKUP(I40,[2]Feuil1!$G$11:$L$25,3),VLOOKUP(I40,[2]Feuil1!$G$11:$L$25,2))))))) -> S69
B41: H | D41: REY | E41: CEDRIC | H41: 4 | I41: 71.7 | J41: 112.5 | K41: 117.5 | L41: 122.5 | M41: -125 | N41: =IF(H41="","",IF(MAXA(J41:M41)<=0,0,MAXA(J41:M41))) -> 122.5 | O41: =IF(N41="",0,N41-(I41/1)) -> 50.8 | P41: =IF(I41="","",IF(B41="H",IF(OR(H41="SEN",H41<1995),VLOOKUP(I41,[2]Feuil1!$A$11:$G$29,6),IF(AND(H41>1994,H41<1998),VLOOKUP(I41,[2]Feuil1!$A$11:$G$29,5),IF(AND(H41>1997,H41<2000),VLOOKUP(I41,[2]Feuil1!$A$11:$G$29,4),IF(AND(H41>1999,H41<2002),VLOOKUP(I41,[2]Feuil1!$A$11:$G$29,3),VLOOKUP(I41,[2]Feuil1!$A$11:$G$29,2))))),IF(OR(H41="SEN",H41<1995),VLOOKUP(I41,[2]Feuil1!$G$11:$L$25,6),IF(AND(H41>1994,H41<1998),VLOOKUP(I41,[2]Feuil1!$G$11:$L$25,5),IF(AND(H41>1997,H41<2000),VLOOKUP(I41,[2]Feuil1!$G$11:$L$25,4),IF(AND(H41>1999,H41<2002),VLOOKUP(I41,[2]Feuil1!$G$11:$L$25,3),VLOOKUP(I41,[2]Feuil1!$G$11:$L$25,2))))))) -> S77
B42: H | D42: DOMINGUES | E42: MAXIME | H42: 5 | I42: 74.2 | J42: 122.5 | K42: 130 | L42: 135 | M42: 140 | N42: =IF(H42="","",IF(MAXA(J42:M42)<=0,0,MAXA(J42:M42))) -> 140 | O42: =IF(N42="",0,N42-(I42/1)) -> 65.8 | P42: =IF(I42="","",IF(B42="H",IF(OR(H42="SEN",H42<1995),VLOOKUP(I42,[2]Feuil1!$A$11:$G$29,6),IF(AND(H42>1994,H42<1998),VLOOKUP(I42,[2]Feuil1!$A$11:$G$29,5),IF(AND(H42>1997,H42<2000),VLOOKUP(I42,[2]Feuil1!$A$11:$G$29,4),IF(AND(H42>1999,H42<2002),VLOOKUP(I42,[2]Feuil1!$A$11:$G$29,3),VLOOKUP(I42,[2]Feuil1!$A$11:$G$29,2))))),IF(OR(H42="SEN",H42<1995),VLOOKUP(I42,[2]Feuil1!$G$11:$L$25,6),IF(AND(H42>1994,H42<1998),VLOOKUP(I42,[2]Feuil1!$G$11:$L$25,5),IF(AND(H42>1997,H42<2000),VLOOKUP(I42,[2]Feuil1!$G$11:$L$25,4),IF(AND(H42>1999,H42<2002),VLOOKUP(I42,[2]Feuil1!$G$11:$L$25,3),VLOOKUP(I42,[2]Feuil1!$G$11:$L$25,2))))))) -> S77
B43: H | D43: EID | E43: PETER | H43: 6 | I43: 100.8 | J43: 140 | K43: 160 | L43: -167.5 | M43: -167.5 | N43: =IF(H43="","",IF(MAXA(J43:M43)<=0,0,MAXA(J43:M43))) -> 160 | O43: =IF(N43="",0,N43-(I43/1)) -> 59.2 | P43: =IF(I43="","",IF(B43="H",IF(OR(H43="SEN",H43<1995),VLOOKUP(I43,[2]Feuil1!$A$11:$G$29,6),IF(AND(H43>1994,H43<1998),VLOOKUP(I43,[2]Feuil1!$A$11:$G$29,5),IF(AND(H43>1997,H43<2000),VLOOKUP(I43,[2]Feuil1!$A$11:$G$29,4),IF(AND(H43>1999,H43<2002),VLOOKUP(I43,[2]Feuil1!$A$11:$G$29,3),VLOOKUP(I43,[2]Feuil1!$A$11:$G$29,2))))),IF(OR(H43="SEN",H43<1995),VLOOKUP(I43,[2]Feuil1!$G$11:$L$25,6),IF(AND(H43>1994,H43<1998),VLOOKUP(I43,[2]Feuil1!$G$11:$L$25,5),IF(AND(H43>1997,H43<2000),VLOOKUP(I43,[2]Feuil1!$G$11:$L$25,4),IF(AND(H43>1999,H43<2002),VLOOKUP(I43,[2]Feuil1!$G$11:$L$25,3),VLOOKUP(I43,[2]Feuil1!$G$11:$L$25,2))))))) -> S105
A44: EQUIPE 5 | B44: F | C44: 4 | D44: CARON | E44: AMELIE | F44: Université de Picardie | G44: AMIENS | H44: 1 | I44: 53.5 | K44: 25 | L44: 27.5 | M44: 30 | N44: =IF(H44="","",IF(MAXA(J44:M44)<=0,0,MAXA(J44:M44))) -> 30 | O44: =IF(N44="",0,N44-(I44/2)) -> 3.25 | P44: =IF(I44="","",IF(B44="H",IF(OR(H44="SEN",H44<1995),VLOOKUP(I44,[2]Feuil1!$A$11:$G$29,6),IF(AND(H44>1994,H44<1998),VLOOKUP(I44,[2]Feuil1!$A$11:$G$29,5),IF(AND(H44>1997,H44<2000),VLOOKUP(I44,[2]Feuil1!$A$11:$G$29,4),IF(AND(H44>1999,H44<2002),VLOOKUP(I44,[2]Feuil1!$A$11:$G$29,3),VLOOKUP(I44,[2]Feuil1!$A$11:$G$29,2))))),IF(OR(H44="SEN",H44<1995),VLOOKUP(I44,[2]Feuil1!$G$11:$L$25,6),IF(AND(H44>1994,H44<1998),VLOOKUP(I44,[2]Feuil1!$G$11:$L$25,5),IF(AND(H44>1997,H44<2000),VLOOKUP(I44,[2]Feuil1!$G$11:$L$25,4),IF(AND(H44>1999,H44<2002),VLOOKUP(I44,[2]Feuil1!$G$11:$L$25,3),VLOOKUP(I44,[2]Feuil1!$G$11:$L$25,2))))))) -> FS58 | R44: =SUM(O44:O49) -> 182.5
B45: F | D45: SEIGNEUR | E45: MANON | H45: 2 | I45: 53.4 | J45: 30 | K45: 35 | L45: 37.5 | M45: -40 | N45: 37.5 | O45: =IF(N45="",0,N45-(I45/2)) -> 10.8 | P45: =IF(I45="","",IF(B45="H",IF(OR(H45="SEN",H45<1995),VLOOKUP(I45,[2]Feuil1!$A$11:$G$29,6),IF(AND(H45>1994,H45<1998),VLOOKUP(I45,[2]Feuil1!$A$11:$G$29,5),IF(AND(H45>1997,H45<2000),VLOOKUP(I45,[2]Feuil1!$A$11:$G$29,4),IF(AND(H45>1999,H45<2002),VLOOKUP(I45,[2]Feuil1!$A$11:$G$29,3),VLOOKUP(I45,[2]Feuil1!$A$11:$G$29,2))))),IF(OR(H45="SEN",H45<1995),VLOOKUP(I45,[2]Feuil1!$G$11:$L$25,6),IF(AND(H45>1994,H45<1998),VLOOKUP(I45,[2]Feuil1!$G$11:$L$25,5),IF(AND(H45>1997,H45<2000),VLOOKUP(I45,[2]Feuil1!$G$11:$L$25,4),IF(AND(H45>1999,H45<2002),VLOOKUP(I45,[2]Feuil1!$G$11:$L$25,3),VLOOKUP(I45,[2]Feuil1!$G$11:$L$25,2))))))) -> FS58
B46: H | D46: HECKENBENNER | E46: AXEL | H46: 3 | I46: 64.2 | J46: 37.5 | K46: 95 | L46: -100 | M46: -100 | N46: =IF(H46="","",IF(MAXA(J46:M46)<=0,0,MAXA(J46:M46))) -> 95 | O46: =IF(N46="",0,N46-(I46/1)) -> 30.8 | P46: =IF(I46="","",IF(B46="H",IF(OR(H46="SEN",H46<1995),VLOOKUP(I46,[2]Feuil1!$A$11:$G$29,6),IF(AND(H46>1994,H46<1998),VLOOKUP(I46,[2]Feuil1!$A$11:$G$29,5),IF(AND(H46>1997,H46<2000),VLOOKUP(I46,[2]Feuil1!$A$11:$G$29,4),IF(AND(H46>1999,H46<2002),VLOOKUP(I46,[2]Feuil1!$A$11:$G$29,3),VLOOKUP(I46,[2]Feuil1!$A$11:$G$29,2))))),IF(OR(H46="SEN",H46<1995),VLOOKUP(I46,[2]Feuil1!$G$11:$L$25,6),IF(AND(H46>1994,H46<1998),VLOOKUP(I46,[2]Feuil1!$G$11:$L$25,5),IF(AND(H46>1997,H46<2000),VLOOKUP(I46,[2]Feuil1!$G$11:$L$25,4),IF(AND(H46>1999,H46<2002),VLOOKUP(I46,[2]Feuil1!$G$11:$L$25,3),VLOOKUP(I46,[2]Feuil1!$G$11:$L$25,2))))))) -> S69
B47: H | D47: LOORIUS | E47: JULIEN | H47: 4 | I47: 67.65 | J47: 95 | K47: 110 | L47: -115 | M47: -115 | N47: =IF(H47="","",IF(MAXA(J47:M47)<=0,0,MAXA(J47:M47))) -> 110 | O47: =IF(N47="",0,N47-(I47/1)) -> 42.35 | P47: =IF(I47="","",IF(B47="H",IF(OR(H47="SEN",H47<1995),VLOOKUP(I47,[2]Feuil1!$A$11:$G$29,6),IF(AND(H47>1994,H47<1998),VLOOKUP(I47,[2]Feuil1!$A$11:$G$29,5),IF(AND(H47>1997,H47<2000),VLOOKUP(I47,[2]Feuil1!$A$11:$G$29,4),IF(AND(H47>1999,H47<2002),VLOOKUP(I47,[2]Feuil1!$A$11:$G$29,3),VLOOKUP(I47,[2]Feuil1!$A$11:$G$29,2))))),IF(OR(H47="SEN",H47<1995),VLOOKUP(I47,[2]Feuil1!$G$11:$L$25,6),IF(AND(H47>1994,H47<1998),VLOOKUP(I47,[2]Feuil1!$G$11:$L$25,5),IF(AND(H47>1997,H47<2000),VLOOKUP(I47,[2]Feuil1!$G$11:$L$25,4),IF(AND(H47>1999,H47<2002),VLOOKUP(I47,[2]Feuil1!$G$11:$L$25,3),VLOOKUP(I47,[2]Feuil1!$G$11:$L$25,2))))))) -> S69
B48: H | D48: PECQUEUX | E48: MAXENCE | H48: 5 | I48: 77.1 | J48: 110 | K48: 117.5 | L48: 122.5 | M48: 125 | N48: =IF(H48="","",IF(MAXA(J48:M48)<=0,0,MAXA(J48:M48))) -> 125 | O48: =IF(N48="",0,N48-(I48/1)) -> 47.9 | P48: =IF(I48="","",IF(B48="H",IF(OR(H48="SEN",H48<1995),VLOOKUP(I48,[2]Feuil1!$A$11:$G$29,6),IF(AND(H48>1994,H48<1998),VLOOKUP(I48,[2]Feuil1!$A$11:$G$29,5),IF(AND(H48>1997,H48<2000),VLOOKUP(I48,[2]Feuil1!$A$11:$G$29,4),IF(AND(H48>1999,H48<2002),VLOOKUP(I48,[2]Feuil1!$A$11:$G$29,3),VLOOKUP(I48,[2]Feuil1!$A$11:$G$29,2))))),IF(OR(H48="SEN",H48<1995),VLOOKUP(I48,[2]Feuil1!$G$11:$L$25,6),IF(AND(H48>1994,H48<1998),VLOOKUP(I48,[2]Feuil1!$G$11:$L$25,5),IF(AND(H48>1997,H48<2000),VLOOKUP(I48,[2]Feuil1!$G$11:$L$25,4),IF(AND(H48>1999,H48<2002),VLOOKUP(I48,[2]Feuil1!$G$11:$L$25,3),VLOOKUP(I48,[2]Feuil1!$G$11:$L$25,2))))))) -> S85
B49: H | D49: ROBIN | E49: THOMAS | H49: 6 | I49: 85.1 | J49: 125 | K49: 127.5 | L49: 130 | M49: 132.5 | N49: =IF(H49="","",IF(MAXA(J49:M49)<=0,0,MAXA(J49:M49))) -> 132.5 | O49: =IF(N49="",0,N49-(I49/1)) -> 47.4 | P49: =IF(I49="","",IF(B49="H",IF(OR(H49="SEN",H49<1995),VLOOKUP(I49,[2]Feuil1!$A$11:$G$29,6),IF(AND(H49>1994,H49<1998),VLOOKUP(I49,[2]Feuil1!$A$11:$G$29,5),IF(AND(H49>1997,H49<2000),VLOOKUP(I49,[2]Feuil1!$A$11:$G$29,4),IF(AND(H49>1999,H49<2002),VLOOKUP(I49,[2]Feuil1!$A$11:$G$29,3),VLOOKUP(I49,[2]Feuil1!$A$11:$G$29,2))))),IF(OR(H49="SEN",H49<1995),VLOOKUP(I49,[2]Feuil1!$G$11:$L$25,6),IF(AND(H49>1994,H49<1998),VLOOKUP(I49,[2]Feuil1!$G$11:$L$25,5),IF(AND(H49>1997,H49<2000),VLOOKUP(I49,[2]Feuil1!$G$11:$L$25,4),IF(AND(H49>1999,H49<2002),VLOOKUP(I49,[2]Feuil1!$G$11:$L$25,3),VLOOKUP(I49,[2]Feuil1!$G$11:$L$25,2))))))) -> S94
A50: EQUIPE 6 | B50: F | C50: 5 | D50: CANET | E50: Chloé | F50: AS UBO | G50: Rennes | H50: 1 | I50: 67.5 | K50: 55 | L50: 60 | M50: -62.5 | N50: =IF(H50="","",IF(MAXA(J50:M50)<=0,0,MAXA(J50:M50))) -> 60 | O50: =IF(N50="",0,N50-(I50/2)) -> 26.25 | P50: =IF(I50="","",IF(B50="H",IF(OR(H50="SEN",H50<1995),VLOOKUP(I50,[2]Feuil1!$A$11:$G$29,6),IF(AND(H50>1994,H50<1998),VLOOKUP(I50,[2]Feuil1!$A$11:$G$29,5),IF(AND(H50>1997,H50<2000),VLOOKUP(I50,[2]Feuil1!$A$11:$G$29,4),IF(AND(H50>1999,H50<2002),VLOOKUP(I50,[2]Feuil1!$A$11:$G$29,3),VLOOKUP(I50,[2]Feuil1!$A$11:$G$29,2))))),IF(OR(H50="SEN",H50<1995),VLOOKUP(I50,[2]Feuil1!$G$11:$L$25,6),IF(AND(H50>1994,H50<1998),VLOOKUP(I50,[2]Feuil1!$G$11:$L$25,5),IF(AND(H50>1997,H50<2000),VLOOKUP(I50,[2]Feuil1!$G$11:$L$25,4),IF(AND(H50>1999,H50<2002),VLOOKUP(I50,[2]Feuil1!$G$11:$L$25,3),VLOOKUP(I50,[2]Feuil1!$G$11:$L$25,2))))))) -> FS69 | R50: =SUM(O50:O55) -> 144.1
B51: F | D51: LE BAIL | E51: Léna | H51: 2 | I51: 81.2 | J51: 60 | K51: 77.5 | L51: 82.5 | M51: _ | N51: 82.5 | O51: =IF(N51="",0,N51-(I51/2)) -> 41.9 | P51: =IF(I51="","",IF(B51="H",IF(OR(H51="SEN",H51<1995),VLOOKUP(I51,[2]Feuil1!$A$11:$G$29,6),IF(AND(H51>1994,H51<1998),VLOOKUP(I51,[2]Feuil1!$A$11:$G$29,5),IF(AND(H51>1997,H51<2000),VLOOKUP(I51,[2]Feuil1!$A$11:$G$29,4),IF(AND(H51>1999,H51<2002),VLOOKUP(I51,[2]Feuil1!$A$11:$G$29,3),VLOOKUP(I51,[2]Feuil1!$A$11:$G$29,2))))),IF(OR(H51="SEN",H51<1995),VLOOKUP(I51,[2]Feuil1!$G$11:$L$25,6),IF(AND(H51>1994,H51<1998),VLOOKUP(I51,[2]Feuil1!$G$11:$L$25,5),IF(AND(H51>1997,H51<2000),VLOOKUP(I51,[2]Feuil1!$G$11:$L$25,4),IF(AND(H51>1999,H51<2002),VLOOKUP(I51,[2]Feuil1!$G$11:$L$25,3),VLOOKUP(I51,[2]Feuil1!$G$11:$L$25,2))))))) -> FS+75
B52: H | D52: GUYOMAR | E52: Thomas | H52: 3 | I52: 71.05 | J52: 82.5 | K52: -85 | L52: -85 | M52: _ | N52: =IF(H52="","",IF(MAXA(J52:M52)<=0,0,MAXA(J52:M52))) -> 82.5 | O52: =IF(N52="",0,N52-(I52/1)) -> 11.45 | P52: =IF(I52="","",IF(B52="H",IF(OR(H52="SEN",H52<1995),VLOOKUP(I52,[2]Feuil1!$A$11:$G$29,6),IF(AND(H52>1994,H52<1998),VLOOKUP(I52,[2]Feuil1!$A$11:$G$29,5),IF(AND(H52>1997,H52<2000),VLOOKUP(I52,[2]Feuil1!$A$11:$G$29,4),IF(AND(H52>1999,H52<2002),VLOOKUP(I52,[2]Feuil1!$A$11:$G$29,3),VLOOKUP(I52,[2]Feuil1!$A$11:$G$29,2))))),IF(OR(H52="SEN",H52<1995),VLOOKUP(I52,[2]Feuil1!$G$11:$L$25,6),IF(AND(H52>1994,H52<1998),VLOOKUP(I52,[2]Feuil1!$G$11:$L$25,5),IF(AND(H52>1997,H52<2000),VLOOKUP(I52,[2]Feuil1!$G$11:$L$25,4),IF(AND(H52>1999,H52<2002),VLOOKUP(I52,[2]Feuil1!$G$11:$L$25,3),VLOOKUP(I52,[2]Feuil1!$G$11:$L$25,2))))))) -> S77
B53: H | D53: GIRARD | E53: Maxime | H53: 4 | I53: 76.55 | J53: 82.5 | K53: 87.5 | L53: 92.5 | M53: -95 | N53: =IF(H53="","",IF(MAXA(J53:M53)<=0,0,MAXA(J53:M53))) -> 92.5 | O53: =IF(N53="",0,N53-(I53/1)) -> 15.95 | P53: =IF(I53="","",IF(B53="H",IF(OR(H53="SEN",H53<1995),VLOOKUP(I53,[2]Feuil1!$A$11:$G$29,6),IF(AND(H53>1994,H53<1998),VLOOKUP(I53,[2]Feuil1!$A$11:$G$29,5),IF(AND(H53>1997,H53<2000),VLOOKUP(I53,[2]Feuil1!$A$11:$G$29,4),IF(AND(H53>1999,H53<2002),VLOOKUP(I53,[2]Feuil1!$A$11:$G$29,3),VLOOKUP(I53,[2]Feuil1!$A$11:$G$29,2))))),IF(OR(H53="SEN",H53<1995),VLOOKUP(I53,[2]Feuil1!$G$11:$L$25,6),IF(AND(H53>1994,H53<1998),VLOOKUP(I53,[2]Feuil1!$G$11:$L$25,5),IF(AND(H53>1997,H53<2000),VLOOKUP(I53,[2]Feuil1!$G$11:$L$25,4),IF(AND(H53>1999,H53<2002),VLOOKUP(I53,[2]Feuil1!$G$11:$L$25,3),VLOOKUP(I53,[2]Feuil1!$G$11:$L$25,2))))))) -> S77
B54: H | D54: PITTY | E54: Jean-baptiste | H54: 5 | I54: 68.9 | J54: 92.5 | K54: 97.5 | L54: 100 | M54: -102.5 | N54: =IF(H54="","",IF(MAXA(J54:M54)<=0,0,MAXA(J54:M54))) -> 100 | O54: =IF(N54="",0,N54-(I54/1)) -> 31.1 | P54: =IF(I54="","",IF(B54="H",IF(OR(H54="SEN",H54<1995),VLOOKUP(I54,[2]Feuil1!$A$11:$G$29,6),IF(AND(H54>1994,H54<1998),VLOOKUP(I54,[2]Feuil1!$A$11:$G$29,5),IF(AND(H54>1997,H54<2000),VLOOKUP(I54,[2]Feuil1!$A$11:$G$29,4),IF(AND(H54>1999,H54<2002),VLOOKUP(I54,[2]Feuil1!$A$11:$G$29,3),VLOOKUP(I54,[2]Feuil1!$A$11:$G$29,2))))),IF(OR(H54="SEN",H54<1995),VLOOKUP(I54,[2]Feuil1!$G$11:$L$25,6),IF(AND(H54>1994,H54<1998),VLOOKUP(I54,[2]Feuil1!$G$11:$L$25,5),IF(AND(H54>1997,H54<2000),VLOOKUP(I54,[2]Feuil1!$G$11:$L$25,4),IF(AND(H54>1999,H54<2002),VLOOKUP(I54,[2]Feuil1!$G$11:$L$25,3),VLOOKUP(I54,[2]Feuil1!$G$11:$L$25,2))))))) -> S69
B55: H | D55: VIGNAULT | E55: Guillaume | H55: 6 | I55: 92.55 | J55: 100 | K55: 105 | L55: -110 | M55: 110 | N55: =IF(H55="","",IF(MAXA(J55:M55)<=0,0,MAXA(J55:M55))) -> 110 | O55: =IF(N55="",0,N55-(I55/1)) -> 17.45 | P55: =IF(I55="","",IF(B55="H",IF(OR(H55="SEN",H55<1995),VLOOKUP(I55,[2]Feuil1!$A$11:$G$29,6),IF(AND(H55>1994,H55<1998),VLOOKUP(I55,[2]Feuil1!$A$11:$G$29,5),IF(AND(H55>1997,H55<2000),VLOOKUP(I55,[2]Feuil1!$A$11:$G$29,4),IF(AND(H55>1999,H55<2002),VLOOKUP(I55,[2]Feuil1!$A$11:$G$29,3),VLOOKUP(I55,[2]Feuil1!$A$11:$G$29,2))))),IF(OR(H55="SEN",H55<1995),VLOOKUP(I55,[2]Feuil1!$G$11:$L$25,6),IF(AND(H55>1994,H55<1998),VLOOKUP(I55,[2]Feuil1!$G$11:$L$25,5),IF(AND(H55>1997,H55<2000),VLOOKUP(I55,[2]Feuil1!$G$11:$L$25,4),IF(AND(H55>1999,H55<2002),VLOOKUP(I55,[2]Feuil1!$G$11:$L$25,3),VLOOKUP(I55,[2]Feuil1!$G$11:$L$25,2))))))) -> S94

Sheet HALTERO FIT BARRE
A1: Déroulement des épreuves d'Hatéro Fit Barre : 7 équipes inscrites | J1: Poids | K1: Chaque côté | L1: Charge réelle | M1: Charge totale | O1: vérification
A2: Mardi 12 mai : 11H30 1/4 de finale | C2: Mardi 12 mai : 15H15 1/2 finales | E2: Jeudi 13 mai : 11H Finale et Classements | J2: 66.95 | K2: =((J2-(1.772*4))/8) -> 7.48275 | L2: 8 | M2: =(L2*8)+(1.772*4) -> 71.088 | O2: =(((J2/4)-1.772))/2 -> 7.48275
C3: et 1er tour Classement | E3: définitif | J3: Bleu | K3: 3 | L3: 2 | M3: =K3*L3 -> 6
A4: 1ère série | B4: M1: Eq4 - Eq5 | C4: 1ère série | D4: M5 1/2 finale : 1 - 4 | E4: 1ère série | F4: M9* Clas : 5 - 6 | J4: Rouge | K4: 2 | L4: 0 | M4: =K4*L4 -> 0
A5: 2ème série | B5: M2 : Eq3 - Eq6 | C5: 2ème série | D5: M6 1/2 finale : 2 - 3 | E5: 2ème série | F5: M10* Cla : 7 seul e | J5: Vert | K5: 1 | M5: =K5*L5 -> 0
A6: 3ème série | B6: M3: Eq2-Eq7 | C6: 3ème série | D6: M7* Clas M7 : 5 - 7 | E6: 3ème série | F6: Place 3/4 : Pd M5 - Pd M6 | J6: Noire | K6: 1.25 | L6: 1 | M6: =K6*L6 -> 1.25
A7: 4ème série | B7: M4: Eq1 seule | C7: 4ème série | D7: M8* Clas : 6 seule | E7: 4ème série | F7: Finale : Vq M5 -Vq M6 | J7: Jaune | K7: 0.5 | L7: 1 | M7: =K7*L7 -> 0.5 | S7: Finale
A8: A l'ssue des 1/4 de Finale, les équipes sont | C8: 1/2 finales pour les équipes classées de | E8: Finales et fin de classement | M8: =SUM(M3:M7) -> 7.75
A9: classées de 1 à 7 en fonction du chronométrage | C9: 1 à 4 et *clasement pour les 3 suivantes | E9: Le classement est déterminé pas l'addition des 2 prestations | J9: Calcul Haltéro Fit Barre
L10: Cla
A11: EQUIPE 1 | B11: U de Montpellier | C11: F | E11: FIGUIN | F11: AUDREY | G11: 0.002326388889 | H11: =SUM(G11:G13) -> 00:15:32 | I11: 59.3 | J11: 6.75 | K11: =((I11-(1.772*4))/8) -> 6.5265 | L11: 1 | M11: 0.002719907407 | N11: =SUM(M11:M13) -> 00:17:51 | O11: 1 | Q11: 0.002997685185 | R11: =SUM(Q11:Q13) -> 00:19:19 | T11: UFR Staps Montpellier | W11: 0.002627314815 | X11: =SUM(W11:W13) -> 00:16:24
B12: U de Montpellier | C12: H | E12: DAVER | F12: DAMIEN | G12: 0.003912037037 | I12: 74.35 | J12: 8.5 | K12: =((I12-(1.772*4))/8) -> 8.40775 | L12: 1 | M12: 0.00412037037 | Q12: 0.004293981481 | W12: 0.003773148148 | Z12: 1
B13: U de Montpellier | C13: H | E13: DECOURT | F13: ARTHUR | G13: 0.004548611111 | I13: 73.65 | J13: 8.5 | K13: =((I13-(1.772*4))/8) -> 8.32025 | L13: 1 | M13: 0.005555555556 | Q13: 0.006122685185 | W13: 0.004988425926
A15: EQUIPE 2 | B15: U de Montpellier | C15: F | E15: REGNIER | F15: CLAIRE | G15: 0.002118055556 | H15: =SUM(G15:G17) -> 00:16:45 | I15: 63.9 | J15: 7.25 | K15: =((I15-(1.772*4))/8) -> 7.1015 | L15: 6 | M15: 0.002280092593 | N15: =SUM(M15:M17) -> 00:19:22 | O15: 0 | P15: F
B16: U de Montpellier | C16: H | E16: DUMAS | F16: ADRIEN | G16: 0.004594907407 | I16: 66.95 | J16: 7.5 | K16: =((I16-(1.772*4))/8) -> 7.48275 | L16: 6 | M16: 0.004780092593
B17: U de Montpellier | C17: H | E17: DELBRAYELLE | F17: NICOLAS | G17: 0.004918981481 | I17: 77.25 | J17: 9 | K17: =((I17-(1.772*4))/8) -> 8.77025 | L17: 6 | M17: 0.006388888889
A19: EQUIPE 3 | B19: U de Montpellier | C19: F | E19: CAILLE | F19: PAULINE | G19: 0.002395833333 | H19: =SUM(G19:G21) -> 00:19:48 | I19: 59.7 | J19: 6.75 | K19: =((I19-(1.772*4))/8) -> 6.5765 | L19: 3 | M19: 0.002719907407 | N19: =SUM(M19:M21) -> 00:21:08 | O19: 4 | Q19: 0.00306712963 | R19: =SUM(Q19:Q21) -> 00:21:06 | T19: 0.002604166667 | U19: =SUM(T19:T21) -> 00:20:07 | Y19: UFR Staps Montpellier
B20: U de Montpellier | C20: H | E20: GIACETTI | F20: FABIEN | G20: 0.005543981481 | I20: 69.85 | J20: 8 | K20: =((I20-(1.772*4))/8) -> 7.84525 | L20: 3 | M20: 0.005798611111 | Q20: 0.00568287037 | T20: 00:08:04 | W20: 3
B21: U de Montpellier | C21: H | E21: DARRIET | F21: NICHOLAS | G21: 0.005810185185 | I21: 62.4 | J21: 7 | K21: =((I21-(1.772*4))/8) -> 6.914 | L21: 3 | M21: 0.006157407407 | Q21: 0.005902777778 | T21: 0.005763888889
A23: EQUIPE 4 | B23: U de Montpellier | C23: F | E23: MARTIN | F23: MARINE | G23: 0.002546296296 | H23: =SUM(G23:G25) -> 00:20:47 | I23: 50.6 | J23: 5.5 | K23: =((I23-(1.772*4))/8) -> 5.439 | L23: 5 | M23: 0.004189814815 | N23: =SUM(M23:M25) -> 00:22:30 | O23: 5
B24: U de Montpellier | C24: H | E24: AUBERT | F24: CORENTIN | G24: 0.005891203704 | I24: 71.85 | J24: 8.25 | K24: =((I24-(1.772*4))/8) -> 8.09525 | L24: 5 | M24: 0.005671296296
B25: U de Montpellier | C25: H | E25: SAMY | F25: RUUD | G25: 0.00599537037 | I25: 78.45 | J25: 9 | K25: =((I25-(1.772*4))/8) -> 8.92025 | L25: 5 | M25: 0.005763888889
A27: EQUIPE 5 | B27: U de Montpellier | C27: F | E27: GUIBAL | F27: EMMANUELLE | G27: 0.002581018519 | H27: =SUM(G27:G29) -> 00:24:20 | I27: 56.7 | J27: 6.25 | K27: =((I27-(1.772*4))/8) -> 6.2015 | L27: 4 | M27: 0.002453703704 | N27: =SUM(M27:M29) -> 00:20:22 | O27: 3 | Q27: 0.002233796296 | R27: =SUM(Q27:Q29) -> 00:22:14 | T27: 0.002337962963 | U27: =SUM(T27:T29) -> 00:20:11 | Y27: UFR Staps Montpellier
B28: U de Montpellier | C28: H | E28: DE PASQUALE | F28: AXEL | G28: 0.006805555556 | I28: 64.5 | J28: 7.25 | K28: =((I28-(1.772*4))/8) -> 7.1765 | L28: 4 | M28: 0.005451388889 | Q28: 0.005972222222 | T28: 0.00525462963 | W28: 4
B29: U de Montpellier | C29: H | E29: BOUET | F29: OLIVIER | G29: 0.007511574074 | I29: 50.7 | J29: 5.5 | K29: =((I29-(1.772*4))/8) -> 5.4515 | L29: 4 | M29: 0.006238425926 | Q29: 0.007233796296 | T29: 0.006423611111
A31: Equipe 6 | B31: U de Picardie | C31: F | E31: RIMBERT | F31: VANESSA | G31: ? | H31: ? | I31: 55.9 | J31: 6.25 | K31: =((I31-(1.772*4))/8) -> 6.1015 | L31: 7 | M31: 0.002673611111 | N31: =SUM(M31:M33) -> 00:23:44 | O31: 7 | P31: F
B32: U de Picardie | C32: H | E32: LOORIUS | F32: JULIEN | G32: ? | I32: 67.15 | J32: 7.75 | K32: =((I32-(1.772*4))/8) -> 7.50775 | L32: 7 | M32: 0.006782407407
B33: U de Picardie | C33: H | E33: MONSIGNA | F33: JOSS | G33: ? | I33: 70.8 | J33: 8 | K33: =((I33-(1.772*4))/8) -> 7.964 | L33: 7 | M33: 0.007025462963
A35: Equipe 7 | B35: UPMC | C35: F | E35: FUGIER | F35: NOEMIE | G35: ? | H35: ? | I35: 62.9 | J35: 7 | K35: =((I35-(1.772*4))/8) -> 6.9765 | L35: 2 | M35: 0.002581018519 | N35: =SUM(M35:M37) -> 00:18:47 | O35: 2 | Q35: 0.003715277778 | R35: =SUM(Q35:Q37) -> 00:20:54 | T35: UPMC Paris | W35: 0.003275462963 | X35: =SUM(W35:W37) -> 00:19:24
B36: UPMC | C36: H | E36: BOWEN | F36: MAXIMILIEN | G36: ? | I36: 68.65 | J36: 7.75 | K36: =((I36-(1.772*4))/8) -> 7.69525 | L36: 2 | M36: 0.005381944444 | Q36: 0.005416666667 | W36: 0.004930555556 | Z36: 2
B37: UPMC | C37: H | E37: JACQUES | F37: QUENTIN | G37: ? | I37: 81.95 | J37: 9.5 | K37: =((I37-(1.772*4))/8) -> 9.35775 | L37: 2 | M37: 0.005081018519 | Q37: 0.005381944444 | W37: 0.005266203704
A39: Remplaçant | B39: U de Montpellier | C39: F | D39: 92870 | E39: THOMAS | F39: ALEXANDRE | G39: 0.008252314815 | I39: 72.25
